Workbook

Sheet Table 20-1 - Totals
A1: Table 20-1. ESTIMATES OF TOTAL INCOME TAX EXPENDITURES FOR 2023-2033 1/
A2: (in millions of dollars)
D3: Total from corporations and individuals
D4: 2023 | E4: =+D4+1 -> 2024 | F4: =+E4+1 -> 2025 | G4: 2026 | H4: 2027 | I4: 2028 | J4: 2029 | K4: 2030 | L4: 2031 | M4: 2032 | N4: 2033 | O4: 2024-2033
A5: National Defense
A6: 1 | B6: Exclusion of benefits and allowances to armed forces personnel | D6: 15,990 | E6: 16,600 | F6: 17,250 | G6: 17,940 | H6: 16,740 | I6: 16,990 | J6: 17,650 | K6: 18,440 | L6: 19,310 | M6: 20,250 | N6: 21,250 | O6: 182,420
A8: International affairs:
A9: 2 | B9: Exclusion of income earned abroad by U.S. citizens | D9: 5,420 | E9: 5,600 | F9: 5,730 | G9: 5,870 | H9: 6,000 | I9: 6,140 | J9: 6,280 | K9: 6,420 | L9: 6,570 | M9: 6,720 | N9: 6,880 | O9: 62,210
A10: 3 | B10: Exclusion of certain allowances for Federal employees abroad | D10: 280 | E10: 300 | F10: 310 | G10: 330 | H10: 350 | I10: 370 | J10: 390 | K10: 410 | L10: 430 | M10: 450 | N10: 480 | O10: 3,820
A11: 4 | B11: Reduced tax rate on active income of controlled foreign corporations (normal tax method) | D11: 45,190 | E11: 46,540 | F11: 47,940 | G11: 41,940 | H11: 43,200 | I11: 44,490 | J11: 45,830 | K11: 47,200 | L11: 48,620 | M11: 50,080 | N11: 51,580 | O11: 467,420
A12: 5 | B12: Deduction for foreign-derived intangible income derived from trade or business within the United States | D12: 15,240 | E12: 15,690 | F12: 16,170 | G12: 9,950 | H12: 10,250 | I12: 10,560 | J12: 10,870 | K12: 11,200 | L12: 11,530 | M12: 11,880 | N12: 12,240 | O12: 120,340
A13: 6 | B13: Interest Charge Domestic International Sales Corporations (IC-DISCs) | D13: 1,620 | E13: 1,690 | F13: 1,780 | G13: 2,010 | H13: 2,200 | I13: 2,330 | J13: 2,440 | K13: 2,560 | L13: 2,660 | M13: 2,770 | N13: 2,900 | O13: 23,340
A15: General science, space, and technology:
A16: 7 | B16: Expensing of research and experimentation expenditures (normal tax method) | D16: -38,660 | E16: -28,850 | F16: -17,940 | G16: -5,610 | H16: 0 | I16: 0 | J16: 0 | K16: 0 | L16: 0 | M16: 0 | N16: 0 | O16: -52,400
A17: 8 | B17: Credit for increasing research activities | D17: 28,220 | E17: 30,040 | F17: 31,880 | G17: 33,800 | H17: 35,710 | I17: 37,640 | J17: 39,640 | K17: 41,700 | L17: 43,840 | M17: 46,060 | N17: 48,340 | O17: 388,650
A19: Energy:
A20: 9 | B20: Expensing of exploration and development costs, oil and gas | D20: 700 | E20: 70 | F20: -50 | G20: -80 | H20: 140 | I20: 330 | J20: 350 | K20: 340 | L20: 330 | M20: 300 | N20: 290 | O20: 2,020
A21: 10 | B21: Expensing of exploration and development costs, coal | D21: 50 | E21: 0 | F21: 0 | G21: -10 | H21: 10 | I21: 30 | J21: 30 | K21: 30 | L21: 30 | M21: 30 | N21: 20 | O21: 170
A22: 11 | B22: Excess of percentage over cost depletion, oil and gas | D22: 1,530 | E22: 1,590 | F22: 1,490 | G22: 1,470 | H22: 1,490 | I22: 1,530 | J22: 1,560 | K22: 1,610 | L22: 1,670 | M22: 1,740 | N22: 1,820 | O22: 15,970
A23: 12 | B23: Excess of percentage over cost depletion, coal | D23: 90 | E23: 90 | F23: 90 | G23: 110 | H23: 110 | I23: 120 | J23: 130 | K23: 140 | L23: 140 | M23: 150 | N23: 150 | O23: 1,230
A24: 13 | B24: Exception from passive loss limitation for working interests in oil and gas properties | D24: 10 | E24: 10 | F24: 10 | G24: 10 | H24: 10 | I24: 10 | J24: 10 | K24: 10 | L24: 10 | M24: 10 | N24: 10 | O24: 100
A25: 14 | B25: Enhanced oil recovery credit | D25: 0 | E25: 0 | F25: 0 | G25: 0 | H25: 0 | I25: 0 | J25: 0 | K25: 0 | L25: 0 | M25: 0 | N25: 0 | O25: 0
A26: 15 | B26: Marginal wells credit | D26: 190 | E26: 180 | F26: 270 | G26: 270 | H26: 180 | I26: 80 | J26: 20 | K26: 0 | L26: 0 | M26: 0 | N26: 0 | O26: 1,000
A27: 16 | B27: Amortize all geological and geophysical expenditures over 2 years | D27: 140 | E27: 150 | F27: 150 | G27: 150 | H27: 150 | I27: 150 | J27: 150 | K27: 140 | L27: 140 | M27: 140 | N27: 140 | O27: 1,460
A28: 17 | B28: Capital gains treatment of royalties on coal | D28: 50 | E28: 50 | F28: 50 | G28: 50 | H28: 60 | I28: 50 | J28: 50 | K28: 50 | L28: 50 | M28: 50 | N28: 50 | O28: 510
A29: 18 | B29: Exclusion of interest on energy facility bonds | D29: 0 | E29: 0 | F29: 0 | G29: 0 | H29: 10 | I29: 10 | J29: 10 | K29: 10 | L29: 10 | M29: 10 | N29: 0 | O29: 60
A30: 19 | B30: Qualified energy conservation bonds 2/ | D30: 30 | E30: 30 | F30: 30 | G30: 30 | H30: 30 | I30: 30 | J30: 30 | K30: 30 | L30: 30 | M30: 30 | N30: 30 | O30: 300
A31: 20 | B31: Exclusion of utility conservation subsidies | D31: 50 | E31: 50 | F31: 40 | G31: 40 | H31: 40 | I31: 30 | J31: 30 | K31: 30 | L31: 30 | M31: 20 | N31: 20 | O31: 330
A32: 21 | B32: Credit for holding clean renewable energy bonds 2/ | D32: 70 | E32: 70 | F32: 70 | G32: 70 | H32: 70 | I32: 70 | J32: 70 | K32: 70 | L32: 70 | M32: 70 | N32: 70 | O32: 700
A33: 22 | B33: Energy production credit 2/ | D33: 7,450 | E33: 7,570 | F33: 9,530 | G33: 13,540 | H33: 19,580 | I33: 26,180 | J33: 31,610 | K33: 36,980 | L33: 41,090 | M33: 43,270 | N33: 47,260 | O33: 276,610
A34: 23 | B34: Energy investment credit 2/ | D34: 25,970 | E34: 27,510 | F34: 18,670 | G34: 13,760 | H34: 14,710 | I34: 12,600 | J34: 8,680 | K34: 17,190 | L34: 11,510 | M34: 11,040 | N34: 12,350 | O34: 148,020
A35: 24 | B35: Advanced nuclear power production credit | D35: 30 | E35: 150 | F35: 220 | G35: 240 | H35: 270 | I35: 280 | J35: 280 | K35: 280 | L35: 240 | M35: 90 | N35: 10 | O35: 2,060
A36: 25 | B36: Zero-emission nuclear power production credit 2/ | D36: 0 | E36: 0 | F36: 0 | G36: 0 | H36: 0 | I36: 0 | J36: 0 | K36: 170 | L36: 790 | M36: 1,580 | N36: 630 | O36: 3,170
A37: 26 | B37: Reduced tax rate for nuclear decommissioning funds | D37: 120 | E37: 120 | F37: 130 | G37: 130 | H37: 140 | I37: 150 | J37: 150 | K37: 160 | L37: 170 | M37: 170 | N37: 180 | O37: 1,500
A38: 27 | B38: Alcohol fuel credits 3/ | D38: 20 | E38: 20 | F38: 0 | G38: 0 | H38: 0 | I38: 0 | J38: 0 | K38: 0 | L38: 0 | M38: 0 | N38: 0 | O38: 20
A39: 28 | B39: Bio-Diesel and small agri-biodiesel producer tax credits 4/ | D39: 20 | E39: 20 | F39: 0 | G39: 0 | H39: 0 | I39: 0 | J39: 0 | K39: 0 | L39: 0 | M39: 0 | N39: 0 | O39: 20
A40: 29 | B40: Clean fuel production credit 2/ 5/ | D40: 0 | E40: 0 | F40: 4,940 | G40: 5,990 | H40: 6,490 | I40: 1,300 | J40: 330 | K40: 0 | L40: 0 | M40: 0 | N40: 0 | O40: 19,050
A41: 30 | B41: Clean hydrogen production credit 2/ | D41: 340 | E41: 540 | F41: 860 | G41: 1,330 | H41: 1,960 | I41: 2,780 | J41: 3,830 | K41: 5,170 | L41: 6,840 | M41: 8,910 | N41: 11,490 | O41: 43,710
A42: 31 | B42: Tax credits for clean vehicles 2/ | D42: 10,560 | E42: 15,570 | F42: 23,580 | G42: 28,930 | H42: 30,260 | I42: 26,230 | J42: 14,340 | K42: 4,670 | L42: -3,080 | M42: -11,320 | N42: -17,130 | O42: 112,050
A43: 32 | B43: Tax credits for refueling property 2/ | D43: 170 | E43: 280 | F43: 460 | G43: 710 | H43: 990 | I43: 1,230 | J43: 1,510 | K43: 1,680 | L43: 1,830 | M43: 1,950 | N43: 630 | O43: 11,270
A44: 33 | B44: Allowance of deduction for certain energy efficient commercial building property | D44: 430 | E44: 520 | F44: 610 | G44: 630 | H44: 630 | I44: 650 | J44: 690 | K44: 710 | L44: 740 | M44: 740 | N44: 710 | O44: 6,630
A45: 34 | B45: Credit for construction of new energy efficient homes | D45: 280 | E45: 200 | F45: 210 | G45: 230 | H45: 230 | I45: 240 | J45: 240 | K45: 240 | L45: 240 | M45: 240 | N45: 240 | O45: 2,310
A46: 35 | B46: Credit for energy efficiency improvements to existing homes | D46: 1,970 | E46: 1,580 | F46: 1,500 | G46: 1,420 | H46: 1,350 | I46: 1,280 | J46: 1,220 | K46: 1,160 | L46: 1,100 | M46: 1,050 | N46: 700 | O46: 12,360
A47: 36 | B47: Credit for residential energy efficient property | D47: 7,090 | E47: 9,250 | F47: 6,150 | G47: 4,850 | H47: 4,000 | I47: 3,700 | J47: 4,620 | K47: 4,260 | L47: 4,310 | M47: 4,220 | N47: 4,180 | O47: 49,540
A48: 37 | B48: Advanced energy property credit 2/ | D48: 260 | E48: 1,170 | F48: 1,560 | G48: 1,010 | H48: 970 | I48: 1,090 | J48: 920 | K48: 190 | L48: 150 | M48: 260 | N48: 110 | O48: 7,430
A49: 38 | B49: Advanced manufacturing production credit 2/ | D49: 430 | E49: 790 | F49: 1,330 | G49: 1,940 | H49: 2,620 | I49: 6,990 | J49: 9,710 | K49: 9,290 | L49: 6,850 | M49: 2,980 | N49: 1,840 | O49: 44,340
A51: Natural resources and environment:
A52: 39 | B52: Expensing of exploration and development costs, nonfuel minerals | D52: 70 | E52: 0 | F52: 0 | G52: -10 | H52: 10 | I52: 30 | J52: 40 | K52: 40 | L52: 30 | M52: 30 | N52: 30 | O52: 200
A53: 40 | B53: Excess of percentage over cost depletion, nonfuel minerals | D53: 310 | E53: 330 | F53: 300 | G53: 310 | H53: 310 | I53: 310 | J53: 330 | K53: 340 | L53: 350 | M53: 360 | N53: 380 | O53: 3,320
A54: 41 | B54: Exclusion of interest on bonds for water, sewage, and hazardous waste facilities | D54: 290 | E54: 230 | F54: 240 | G54: 260 | H54: 290 | I54: 290 | J54: 290 | K54: 320 | L54: 310 | M54: 310 | N54: 220 | O54: 2,760
A55: 42 | B55: Capital gains treatment of certain timber income | D55: 150 | E55: 150 | F55: 160 | G55: 180 | H55: 200 | I55: 210 | J55: 220 | K55: 230 | L55: 240 | M55: 250 | N55: 270 | O55: 2,110
A56: 43 | B56: Expensing of multiperiod timber growing costs | D56: 260 | E56: 260 | F56: 260 | G56: 280 | H56: 290 | I56: 300 | J56: 320 | K56: 320 | L56: 340 | M56: 360 | N56: 370 | O56: 3,100
A57: 44 | B57: Tax incentives for preservation of historic structures | D57: 710 | E57: 670 | F57: 650 | G57: 650 | H57: 670 | I57: 700 | J57: 720 | K57: 770 | L57: 820 | M57: 850 | N57: 780 | O57: 7,280
A58: 45 | B58: Carbon oxide sequestration credit 2/ | D58: 330 | E58: 400 | F58: 510 | G58: 680 | H58: 1,500 | I58: 2,230 | J58: 2,670 | K58: 4,840 | L58: 7,070 | M58: 7,960 | N58: 8,290 | O58: 36,150
A59: 46 | B59: Deduction for endangered species recovery expenditures | D59: 30 | E59: 40 | F59: 40 | G59: 40 | H59: 60 | I59: 60 | J59: 60 | K59: 70 | L59: 70 | M59: 80 | N59: 90 | O59: 610
A61: Agriculture:
A62: 47 | B62: Expensing of certain capital outlays | D62: 120 | E62: 120 | F62: 120 | G62: 140 | H62: 150 | I62: 150 | J62: 150 | K62: 140 | L62: 140 | M62: 140 | N62: 150 | O62: 1,400
A63: 48 | B63: Expensing of certain multiperiod production costs | D63: 250 | E63: 260 | F63: 270 | G63: 310 | H63: 330 | I63: 330 | J63: 330 | K63: 320 | L63: 320 | M63: 320 | N63: 330 | O63: 3,120
A64: 49 | B64: Treatment of loans forgiven for solvent farmers | D64: 60 | E64: 60 | F64: 60 | G64: 70 | H64: 70 | I64: 70 | J64: 70 | K64: 70 | L64: 70 | M64: 70 | N64: 70 | O64: 680
A65: 50 | B65: Capital gains treatment of certain agriculture income | D65: 1,550 | E65: 1,530 | F65: 1,590 | G65: 1,770 | H65: 1,970 | I65: 2,070 | J65: 2,180 | K65: 2,280 | L65: 2,400 | M65: 2,530 | N65: 2,660 | O65: 20,980
A66: 51 | B66: Income averaging for farmers | D66: 210 | E66: 210 | F66: 220 | G66: 230 | H66: 230 | I66: 230 | J66: 230 | K66: 230 | L66: 230 | M66: 230 | N66: 230 | O66: 2,270
A67: 52 | B67: Deferral of gain on sale of farm refiners | D67: 15 | E67: 20 | F67: 20 | G67: 20 | H67: 20 | I67: 20 | J67: 20 | K67: 25 | L67: 25 | M67: 25 | N67: 25 | O67: 220
A68: 53 | B68: Expensing of reforestation expenditures | D68: 60 | E68: 70 | F68: 70 | G68: 80 | H68: 80 | I68: 80 | J68: 80 | K68: 80 | L68: 80 | M68: 90 | N68: 90 | O68: 800
A70: Commerce and housing:
B71: Financial institutions and insurance:
A72: 54 | B72: Exemption of credit union income | D72: 2,970 | E72: 2,940 | F72: 3,110 | G72: 3,300 | H72: 3,460 | I72: 3,570 | J72: 3,680 | K72: 3,820 | L72: 3,850 | M72: 3,900 | N72: 4,170 | O72: 35,800
A73: 55 | B73: Exclusion of life insurance death benefits | D73: 15,320 | E73: 16,260 | F73: 16,670 | G73: 17,360 | H73: 18,320 | I73: 18,610 | J73: 19,020 | K73: 19,510 | L73: 19,980 | M73: 20,430 | N73: 20,880 | O73: 187,040
A74: 56 | B74: Exemption or special alternative tax for small property and casualty insurance companies | D74: 1,400 | E74: 1,430 | F74: 1,470 | G74: 1,510 | H74: 1,540 | I74: 1,560 | J74: 1,590 | K74: 1,630 | L74: 1,670 | M74: 1,710 | N74: 1,750 | O74: 15,860
A75: 57 | B75: Tax exemption of insurance income earned by tax-exempt organizations | D75: 370 | E75: 380 | F75: 390 | G75: 390 | H75: 400 | I75: 410 | J75: 420 | K75: 430 | L75: 430 | M75: 440 | N75: 440 | O75: 4,130
A76: 58 | B76: Exclusion of interest spread of financial institutions | D76: 11,100 | E76: 9,010 | F76: 9,330 | G76: 9,810 | H76: 10,200 | I76: 10,360 | J76: 10,440 | K76: 10,610 | L76: 10,830 | M76: 11,010 | N76: 11,140 | O76: 102,740
B77: Housing:
A78: 59 | B78: Exclusion of interest on owner-occupied mortgage subsidy bonds | D78: 880 | E78: 710 | F78: 730 | G78: 790 | H78: 860 | I78: 860 | J78: 890 | K78: 950 | L78: 940 | M78: 910 | N78: 640 | O78: 8,280
A79: 60 | B79: Exclusion of interest on rental housing bonds | D79: 1,610 | E79: 1,300 | F79: 1,350 | G79: 1,460 | H79: 1,580 | I79: 1,590 | J79: 1,630 | K79: 1,750 | L79: 1,730 | M79: 1,670 | N79: 1,160 | O79: 15,220
A80: 61 | B80: Deductibility of mortgage interest on owner-occupied homes | D80: 31,820 | E80: 30,770 | F80: 30,920 | G80: 67,280 | H80: 87,740 | I80: 91,630 | J80: 95,620 | K80: 99,780 | L80: 104,210 | M80: 108,570 | N80: 111,950 | O80: 828,470
A81: 62 | B81: Deductibility of State and local property tax on owner-occupied homes 6/ | D81: 6,910 | E81: 6,410 | F81: 6,090 | G81: 34,180 | H81: 50,080 | I81: 52,530 | J81: 54,640 | K81: 56,890 | L81: 59,490 | M81: 62,120 | N81: 64,830 | O81: 447,260
A82: 63 | B82: Deferral of income from installment sales | D82: 1,750 | E82: 1,720 | F82: 1,780 | G82: 1,860 | H82: 1,940 | I82: 2,020 | J82: 2,100 | K82: 2,190 | L82: 2,290 | M82: 2,380 | N82: 2,490 | O82: 20,770
A83: 64 | B83: Capital gains exclusion on home sales | D83: 54,410 | E83: 58,230 | F83: 60,400 | G83: 66,830 | H83: 71,490 | I83: 74,300 | J83: 77,040 | K83: 79,900 | L83: 83,100 | M83: 86,410 | N83: 89,690 | O83: 747,390
A84: 65 | B84: Exclusion of net imputed rental income | D84: 147,240 | E84: 151,950 | F84: 156,250 | G84: 174,960 | H84: 183,050 | I84: 191,070 | J84: 199,350 | K84: 208,160 | L84: 217,490 | M84: 226,790 | N84: 236,720 | O84: 1,945,790
A85: 66 | B85: Exception from passive loss rules for $25,000 of rental loss | D85: 5,470 | E85: 5,460 | F85: 5,600 | G85: 5,840 | H85: 5,600 | I85: 5,270 | J85: 4,830 | K85: 4,340 | L85: 4,030 | M85: 4,010 | N85: 4,140 | O85: 49,120
A86: 67 | B86: Credit for low-income housing investments | D86: 12,800 | E86: 13,630 | F86: 14,400 | G86: 15,130 | H86: 15,790 | I86: 16,270 | J86: 16,700 | K86: 17,100 | L86: 17,400 | M86: 17,670 | N86: 17,920 | O86: 149,510
A87: 68 | B87: Accelerated depreciation on rental housing (normal tax method) | D87: 2,440 | E87: 2,150 | F87: 2,530 | G87: 3,240 | H87: 3,960 | I87: 4,620 | J87: 5,300 | K87: 5,960 | L87: 6,590 | M87: 7,200 | N87: 7,800 | O87: 49,350
A88: 69 | B88: Discharge of mortgage indebtedness | D88: 220 | E88: 140 | F88: 140 | G88: 50 | H88: 0 | I88: 0 | J88: 0 | K88: 0 | L88: 0 | M88: 0 | N88: 0 | O88: 330
B89: Commerce:
A90: 70 | B90: Discharge of business indebtedness | D90: -10 | E90: 10 | F90: 40 | G90: 60 | H90: 70 | I90: 60 | J90: 50 | K90: 40 | L90: 20 | M90: 20 | N90: 30 | O90: 400
A91: 71 | B91: Exceptions from imputed interest rules | D91: 60 | E91: 70 | F91: 70 | G91: 80 | H91: 80 | I91: 80 | J91: 80 | K91: 80 | L91: 80 | M91: 90 | N91: 90 | O91: 800
A92: 72 | B92: Treatment of qualified dividends | D92: 35,880 | E92: 38,390 | F92: 39,990 | G92: 44,470 | H92: 49,190 | I92: 51,470 | J92: 53,730 | K92: 56,150 | L92: 58,710 | M92: 61,380 | N92: 64,170 | O92: 517,650
A93: 73 | B93: Capital gains (except agriculture, timber, iron ore, and coal) | D93: 115,630 | E93: 114,130 | F93: 118,590 | G93: 132,180 | H93: 146,890 | I93: 154,710 | J93: 162,580 | K93: 170,590 | L93: 179,150 | M93: 188,540 | N93: 198,600 | O93: 1,565,960
A94: 74 | B94: Capital gains exclusion of small corporation stock | D94: 1,780 | E94: 1,850 | F94: 1,930 | G94: 2,000 | H94: 2,070 | I94: 2,150 | J94: 2,240 | K94: 2,330 | L94: 2,430 | M94: 2,530 | N94: 2,640 | O94: 22,170
A95: 75 | B95: Step-up basis of capital gains at death | D95: 49,240 | E95: 33,560 | F95: 35,940 | G95: 38,960 | H95: 44,060 | I95: 48,230 | J95: 52,300 | K95: 56,600 | L95: 61,240 | M95: 66,620 | N95: 72,070 | O95: 509,580
A96: 76 | B96: Carryover basis of capital gains on gifts | D96: 4,590 | E96: 4,130 | F96: 4,470 | G96: 5,720 | H96: 6,890 | I96: 6,860 | J96: 6,790 | K96: 6,890 | L96: 7,170 | M96: 7,800 | N96: 8,830 | O96: 65,550
A97: 77 | B97: Ordinary income treatment of loss from small business corporation stock sale | D97: 70 | E97: 80 | F97: 80 | G97: 80 | H97: 80 | I97: 80 | J97: 90 | K97: 90 | L97: 90 | M97: 90 | N97: 100 | O97: 860
A98: 78 | B98: Deferral of capital gains from like-kind exchanges | D98: 4,020 | E98: 4,230 | F98: 5,430 | G98: 5,569 | H98: 4,870 | I98: 5,130 | J98: 5,380 | K98: 5,640 | L98: 5,940 | M98: 6,240 | N98: 6,440 | O98: 54,869
A99: 79 | B99: Depreciation of buildings other than rental housing (normal tax method) | D99: 920 | E99: -190 | F99: -390 | G99: -400 | H99: -360 | I99: -130 | J99: 220 | K99: 740 | L99: 970 | M99: 1,300 | N99: 1,610 | O99: 3,370
A100: 80 | B100: Accelerated depreciation of machinery and equipment (normal tax method) | D100: 10,430 | E100: -3,730 | F100: -11,580 | G100: -18,420 | H100: -25,860 | I100: -17,160 | J100: -4,110 | K100: 3,770 | L100: 8,800 | M100: 12,180 | N100: 14,790 | O100: -41,320
A101: 81 | B101: Exclusion of interest on small issue bonds | D101: 60 | E101: 60 | F101: 60 | G101: 70 | H101: 70 | I101: 70 | J101: 70 | K101: 70 | L101: 70 | M101: 70 | N101: 50 | O101: 660
A102: 82 | B102: Special rules for certain film and TV production | D102: 100 | E102: 180 | F102: 240 | G102: -380 | H102: -520 | I102: -250 | J102: -120 | K102: -50 | L102: -20 | M102: 0 | N102: 0 | O102: -920
A103: 83 | B103: Allow 20-percent deduction to certain pass-through income | D103: 37,240 | E103: 61,850 | F103: 65,180 | G103: 27,000 | H103: 0 | I103: 0 | J103: 0 | K103: 0 | L103: 0 | M103: 0 | N103: 0 | O103: 154,030
A104: 84 | B104: Advanced manufacturing investment credit 2/ | D104: 190 | E104: 3,630 | F104: 3,830 | G104: 4,080 | H104: 2,820 | I104: 2,860 | J104: 2,610 | K104: 2,590 | L104: 1,950 | M104: 1,350 | N104: 1,010 | O104: 26,730
A106: Transportation:
A107: 85 | B107: Tonnage tax | D107: 100 | E107: 100 | F107: 100 | G107: 100 | H107: 100 | I107: 110 | J107: 110 | K107: 110 | L107: 110 | M107: 110 | N107: 120 | O107: 1,070
A108: 86 | B108: Deferral of tax on shipping companies | D108: 10 | E108: 10 | F108: 10 | G108: 10 | H108: 10 | I108: 10 | J108: 10 | K108: 10 | L108: 10 | M108: 10 | N108: 10 | O108: 100
A109: 87 | B109: Exclusion of reimbursed employee parking expenses | D109: 1,827 | E109: 1,890 | F109: 1,957 | G109: 2,025 | H109: 2,116 | I109: 2,211 | J109: 2,311 | K109: 2,415 | L109: 2,523 | M109: 2,637 | N109: 2,756 | O109: 22,841
A110: 88 | B110: Exclusion for employer-provided transit passes | D110: 369 | E110: 381 | F110: 394 | G110: 408 | H110: 431 | I110: 455 | J110: 479 | K110: 506 | L110: 534 | M110: 563 | N110: 594 | O110: 4,745
A111: 89 | B111: Tax credit for certain expenditures for maintaining railroad tracks | D111: 130 | E111: 80 | F111: 60 | G111: 40 | H111: 30 | I111: 30 | J111: 20 | K111: 10 | L111: 10 | M111: 0 | N111: 0 | O111: 280
A112: 90 | B112: Exclusion of interest on bonds for Highway Projects and rail-truck transfer facilities | D112: 140 | E112: 140 | F112: 130 | G112: 130 | H112: 120 | I112: 110 | J112: 110 | K112: 100 | L112: 100 | M112: 80 | N112: 80 | O112: 1,100
A114: Community and regional development:
A115: 91 | B115: Exclusion of interest for airport, dock, and similar bonds | D115: 1,050 | E115: 840 | F115: 870 | G115: 950 | H115: 1,020 | I115: 1,030 | J115: 1,060 | K115: 1,130 | L115: 1,120 | M115: 1,080 | N115: 750 | O115: 9,850
A116: 92 | B116: Exemption of certain mutuals' and cooperatives' income | D116: 100 | E116: 100 | F116: 110 | G116: 110 | H116: 110 | I116: 110 | J116: 120 | K116: 120 | L116: 120 | M116: 120 | N116: 130 | O116: 1,150
A117: 93 | B117: Empowerment zones | D117: 90 | E117: 90 | F117: 100 | G117: 80 | H117: 60 | I117: 40 | J117: 20 | K117: 20 | L117: 20 | M117: 20 | N117: 10 | O117: 460
A118: 94 | B118: New markets tax credit | D118: 1,210 | E118: 1,250 | F118: 1,310 | G118: 1,360 | H118: 1,340 | I118: 1,230 | J118: 1,060 | K118: 870 | L118: 640 | M118: 410 | N118: 160 | O118: 9,630
A119: 95 | B119: Credit to holders of Gulf and Midwest Tax Credit Bonds . | D119: 100 | E119: 80 | F119: 80 | G119: 80 | H119: 80 | I119: 70 | J119: 60 | K119: 60 | L119: 50 | M119: 30 | N119: 20 | O119: 610
A120: 96 | B120: Recovery Zone Bonds 2/ | D120: 90 | E120: 70 | F120: 70 | G120: 70 | H120: 70 | I120: 60 | J120: 60 | K120: 50 | L120: 40 | M120: 30 | N120: 10 | O120: 530
A121: 97 | B121: Tribal Economic Development Bonds | D121: 10 | E121: 10 | F121: 10 | G121: 10 | H121: 10 | I121: 10 | J121: 10 | K121: 10 | L121: 10 | M121: 10 | N121: 10 | O121: 100
A122: 98 | B122: Opportunity Zones | D122: 2,080 | E122: 2,160 | F122: 1,990 | G122: -6,400 | H122: -12,400 | I122: 670 | J122: 880 | K122: 1,130 | L122: 1,320 | M122: 1,550 | N122: 1,650 | O122: -7,450
A123: 99 | B123: Disaster employee retention credit | D123: 50 | E123: 40 | F123: 40 | G123: 20 | H123: 20 | I123: 20 | J123: 10 | K123: 10 | L123: 10 | M123: 10 | N123: 10 | O123: 190
A125: Education, training, employment, and social services:
B126: Education:
A127: 100 | B127: Exclusion of scholarship and fellowship income (normal tax method) | D127: 4,430 | E127: 4,670 | F127: 4,920 | G127: 5,440 | H127: 6,200 | I127: 6,530 | J127: 6,850 | K127: 7,220 | L127: 7,610 | M127: 8,010 | N127: 8,430 | O127: 65,880
A128: 101 | B128: Tax credits for post-secondary education expenses 2/ | D128: 13,940 | E128: 13,860 | F128: 13,660 | G128: 13,390 | H128: 13,270 | I128: 13,030 | J128: 12,790 | K128: 12,490 | L128: 12,220 | M128: 11,910 | N128: 11,600 | O128: 128,220
A129: 102 | B129: Deductibility of student-loan interest | D129: 560 | E129: 940 | F129: 2,490 | G129: 2,690 | H129: 3,110 | I129: 3,160 | J129: 3,290 | K129: 3,320 | L129: 3,400 | M129: 3,420 | N129: 3,450 | O129: 29,270
A130: 103 | B130: Qualified tuition programs (includes Education IRA) | D130: 3,020 | E130: 3,350 | F130: 3,800 | G130: 4,630 | H130: 5,570 | I130: 6,660 | J130: 8,120 | K130: 10,090 | L130: 12,740 | M130: 16,260 | N130: 20,940 | O130: 92,160
A131: 104 | B131: Exclusion of interest on student-loan bonds | D131: 150 | E131: 130 | F131: 120 | G131: 140 | H131: 150 | I131: 150 | J131: 160 | K131: 170 | L131: 170 | M131: 160 | N131: 110 | O131: 1,460
A132: 105 | B132: Exclusion of interest on bonds for private nonprofit educational facilities | D132: 2,280 | E132: 1,850 | F132: 1,900 | G132: 2,070 | H132: 2,230 | I132: 2,250 | J132: 2,310 | K132: 2,480 | L132: 2,440 | M132: 2,370 | N132: 1,650 | O132: 21,550
A133: 106 | B133: Credit for holders of zone academy bonds 2/ | D133: 90 | E133: 80 | F133: 60 | G133: 50 | H133: 50 | I133: 40 | J133: 40 | K133: 40 | L133: 30 | M133: 30 | N133: 30 | O133: 450
A134: 107 | B134: Exclusion of interest on savings bonds redeemed to finance educational expenses | D134: 40 | E134: 40 | F134: 40 | G134: 50 | H134: 50 | I134: 50 | J134: 50 | K134: 50 | L134: 50 | M134: 60 | N134: 60 | O134: 500
A135: 108 | B135: Parental personal exemption for students age 19 or over | D135: 2,210 | E135: 3,280 | F135: 3,200 | G135: 6,110 | H135: 7,550 | I135: 7,480 | J135: 7,470 | K135: 7,410 | L135: 7,300 | M135: 7,220 | N135: 7,170 | O135: 64,190
A136: 109 | B136: Deductibility of charitable contributions to educational institutions | D136: 6,230 | E136: 6,290 | F136: 6,300 | G136: 7,360 | H136: 10,350 | I136: 11,050 | J136: 11,850 | K136: 12,170 | L136: 12,580 | M136: 13,060 | N136: 13,560 | O136: 104,570
A137: 110 | B137: Exclusion of employer-provided educational assistance | D137: 1,660 | E137: 1,770 | F137: 1,880 | G137: 1,660 | H137: 1,570 | I137: 1,650 | J137: 1,730 | K137: 1,820 | L137: 1,920 | M137: 2,010 | N137: 2,100 | O137: 18,110
A138: 111 | B138: Special deduction for teacher expenses | D138: 160 | E138: 160 | F138: 160 | G138: 170 | H138: 190 | I138: 190 | J138: 210 | K138: 230 | L138: 190 | M138: 200 | N138: 200 | O138: 1,900
A139: 112 | B139: Discharge of student loan indebtedness | D139: 100 | E139: 110 | F139: 130 | G139: 150 | H139: 170 | I139: 200 | J139: 240 | K139: 280 | L139: 320 | M139: 380 | N139: 440 | O139: 2,420
A140: 113 | B140: Qualified school construction bonds 2/ | D140: 490 | E140: 470 | F140: 440 | G140: 410 | H140: 390 | I140: 360 | J140: 330 | K140: 320 | L140: 290 | M140: 260 | N140: 240 | O140: 3,510
B141: Training, employment, and social services:
A142: 114 | B142: Work opportunity tax credit | D142: 2,070 | E142: 2,130 | F142: 2,200 | G142: 1,400 | H142: 520 | I142: 340 | J142: 260 | K142: 190 | L142: 150 | M142: 110 | N142: 80 | O142: 7,380
A143: 115 | B143: Employer provided child care exclusion | D143: 760 | E143: 840 | F143: 910 | G143: 1,180 | H143: 1,330 | I143: 1,380 | J143: 1,440 | K143: 1,500 | L143: 1,560 | M143: 1,620 | N143: 1,670 | O143: 13,430
A144: 116 | B144: Employer-provided child care credit | D144: 20 | E144: 20 | F144: 20 | G144: 20 | H144: 20 | I144: 20 | J144: 30 | K144: 40 | L144: 40 | M144: 40 | N144: 40 | O144: 290
A145: 117 | B145: Assistance for adopted foster children | D145: 880 | E145: 940 | F145: 1,000 | G145: 1,040 | H145: 1,100 | I145: 1,170 | J145: 1,270 | K145: 1,340 | L145: 1,330 | M145: 1,530 | N145: 1,620 | O145: 12,340
A146: 118 | B146: Adoption credit and exclusion | D146: 870 | E146: 900 | F146: 920 | G146: 930 | H146: 940 | I146: 950 | J146: 960 | K146: 970 | L146: 980 | M146: 990 | N146: 990 | O146: 9,530
A147: 119 | B147: Exclusion of employee meals and lodging (other than military) | D147: 7,530 | E147: 6,960 | F147: 6,900 | G147: 8,140 | H147: 8,890 | I147: 9,190 | J147: 9,520 | K147: 9,850 | L147: 9,190 | M147: 10,510 | N147: 10,870 | O147: 90,020
A148: 120 | B148: Credit for child and dependent care expenses 2/ | D148: 3,480 | E148: 3,690 | F148: 3,850 | G148: 3,920 | H148: 3,950 | I148: 3,980 | J148: 4,010 | K148: 4,040 | L148: 4,070 | M148: 4,100 | N148: 4,120 | O148: 39,730
A149: 121 | B149: Credit for disabled access expenditures | D149: 10 | E149: 10 | F149: 10 | G149: 10 | H149: 10 | I149: 10 | J149: 10 | K149: 10 | L149: 10 | M149: 10 | N149: 10 | O149: 100
A150: 122 | B150: Deductibility of charitable contributions, other than education and health | D150: 47,410 | E150: 47,940 | F150: 48,030 | G150: 56,740 | H150: 81,110 | I150: 86,690 | J150: 92,850 | K150: 98,230 | L150: 104,630 | M150: 111,540 | N150: 118,910 | O150: 846,670
A151: 123 | B151: Exclusion of certain foster care payments | D151: 500 | E151: 530 | F151: 560 | G151: 590 | H151: 640 | I151: 700 | J151: 780 | K151: 870 | L151: 970 | M151: 1,100 | N151: 1,270 | O151: 8,010
A152: 124 | B152: Exclusion of parsonage allowances | D152: 959 | E152: 1,009 | F152: 1,058 | G152: 1,118 | H152: 1,177 | I152: 1,246 | J152: 1,305 | K152: 1,375 | L152: 1,444 | M152: 1,523 | N152: 1,602 | O152: 12,857
A153: 125 | B153: Indian employment credit | D153: 30 | E153: 30 | F153: 20 | G153: 20 | H153: 20 | I153: 20 | J153: 0 | K153: 0 | L153: 0 | M153: 0 | N153: 0 | O153: 110
A154: 126 | B154: Employer-provided paid family and medical leave credit | D154: 70 | E154: 90 | F154: 90 | G154: 50 | H154: 10 | I154: 0 | J154: 0 | K154: 0 | L154: 0 | M154: 0 | N154: 0 | O154: 240
A156: Health:
A157: 127 | B157: Exclusion of employer contributions for medical insurance premiums and medical care 7/ | D157: 215,860 | E157: 231,010 | F157: 246,510 | G157: 289,890 | H157: 321,980 | I157: 340,080 | J157: 359,210 | K157: 379,310 | L157: 400,400 | M157: 422,430 | N157: 445,530 | O157: 3,436,350
A158: 128 | B158: Self-employed medical insurance premiums | D158: 8,150 | E158: 8,520 | F158: 9,030 | G158: 11,210 | H158: 12,990 | I158: 14,060 | J158: 15,040 | K158: 16,290 | L158: 17,610 | M158: 18,790 | N158: 19,770 | O158: 143,310
A159: 129 | B159: Medical Savings Accounts / Health Savings Accounts | D159: 12,830 | E159: 13,610 | F159: 14,180 | G159: 16,270 | H159: 17,690 | I159: 18,260 | J159: 18,820 | K159: 19,500 | L159: 20,190 | M159: 20,820 | N159: 21,540 | O159: 180,880
A160: 130 | B160: Deductibility of medical expenses | D160: 12,260 | E160: 12,900 | F160: 13,550 | G160: 18,620 | H160: 22,370 | I160: 24,140 | J160: 25,910 | K160: 27,850 | L160: 30,040 | M160: 32,460 | N160: 35,100 | O160: 242,940
A161: 131 | B161: Exclusion of interest on hospital construction bonds | D161: 3,120 | E161: 2,530 | F161: 2,600 | G161: 2,830 | H161: 3,050 | I161: 3,080 | J161: 3,160 | K161: 3,390 | L161: 3,350 | M161: 3,240 | N161: 2,260 | O161: 29,490
A162: 132 | B162: Refundable Premium Assistance Tax Credit 2/ | D162: 15,047 | E162: 14,935 | F162: 15,413 | G162: 12,440 | H162: 10,816 | I162: 10,684 | J162: 10,507 | K162: 10,913 | L162: 11,914 | M162: 12,707 | N162: 13,277 | O162: 123,606
A163: 133 | B163: Credit for employee health insurance expenses of small business | D163: 10 | E163: 10 | F163: 0 | G163: 0 | H163: 0 | I163: 0 | J163: 0 | K163: 0 | L163: 0 | M163: 0 | N163: 0 | O163: 10
A164: 134 | B164: Deductibility of charitable contributions to health institutions | D164: 9,000 | E164: 9,060 | F164: 9,050 | G164: 10,110 | H164: 13,340 | I164: 14,250 | J164: 15,220 | K164: 16,090 | L164: 17,080 | M164: 18,180 | N164: 19,350 | O164: 141,730
A165: 135 | B165: Tax credit for orphan drug research | D165: 1,740 | E165: 1,940 | F165: 2,160 | G165: 2,420 | H165: 2,700 | I165: 3,020 | J165: 3,370 | K165: 3,770 | L165: 4,210 | M165: 4,700 | N165: 5,250 | O165: 33,540
A166: 136 | B166: Special Blue Cross/Blue Shield tax benefits | D166: 370 | E166: 380 | F166: 400 | G166: 420 | H166: 450 | I166: 470 | J166: 500 | K166: 530 | L166: 570 | M166: 610 | N166: 650 | O166: 4,980
A167: 137 | B167: Distributions from retirement plans for premiums for health and long-term care insurance | D167: 470 | E167: 490 | F167: 500 | G167: 590 | H167: 630 | I167: 650 | J167: 660 | K167: 670 | L167: 670 | M167: 680 | N167: 690 | O167: 6,230
A168: 138 | B168: Credit for family and sick leave taken by self-employed individuals 2/ | D168: 520 | E168: 0 | F168: 0 | G168: 0 | H168: 0 | I168: 0 | J168: 0 | K168: 0 | L168: 0 | M168: 0 | N168: 0 | O168: 0
A170: Income security:
A171: 139 | B171: Child credit 2/ | D171: 67,520 | E171: 63,740 | F171: 65,370 | G171: 45,890 | H171: 15,780 | I171: 15,390 | J171: 14,990 | K171: 14,540 | L171: 14,050 | M171: 13,560 | N171: 13,110 | O171: 276,420
A172: 140 | B172: Other Dependent Tax Credit
A173: 141 | B173: Exclusion of railroad retirement (Social Security equivalent) benefits | D173: 300 | E173: 280 | F173: 260 | G173: 270 | H173: 270 | I173: 250 | J173: 220 | K173: 200 | L173: 160 | M173: 130 | N173: 90 | O173: 2,130
A174: 142 | B174: Exclusion of workers' compensation benefits | D174: 8,870 | E174: 8,870 | F174: 8,870 | G174: 8,860 | H174: 8,860 | I174: 8,850 | J174: 8,850 | K174: 8,850 | L174: 8,840 | M174: 8,840 | N174: 8,840 | O174: 88,530
A175: 143 | B175: Exclusion of public assistance benefits (normal tax method) | D175: 760 | E175: 720 | F175: 720 | G175: 770 | H175: 800 | I175: 830 | J175: 850 | K175: 840 | L175: 890 | M175: 920 | N175: 970 | O175: 8,310
A176: 144 | B176: Exclusion of special benefits for disabled coal miners | D176: 20 | E176: 20 | F176: 20 | G176: 20 | H176: 10 | I176: 10 | J176: 10 | K176: 10 | L176: 10 | M176: 10 | N176: 10 | O176: 130
A177: 145 | B177: Exclusion of military disability pensions | D177: 200 | E177: 210 | F177: 210 | G177: 240 | H177: 260 | I177: 260 | J177: 270 | K177: 280 | L177: 280 | M177: 290 | N177: 300 | O177: 2,600
B178: Net exclusion of pension contributions and earnings:
A179: 146 | B179: Defined benefit employer plans | D179: 70,100 | E179: 68,860 | F179: 68,880 | G179: 77,890 | H179: 77,310 | I179: 76,940 | J179: 76,680 | K179: 77,780 | L179: 77,950 | M179: 77,510 | N179: 76,910 | O179: 756,710
A180: 147 | B180: Defined contribution employer plans | D180: 133,860 | E180: 136,290 | F180: 141,780 | G180: 170,240 | H180: 177,930 | I180: 186,430 | J180: 195,500 | K180: 205,940 | L180: 218,260 | M180: 229,800 | N180: 242,050 | O180: 1,904,220
A181: 148 | B181: Individual Retirement Accounts | D181: 32,690 | E181: 33,210 | F181: 34,470 | G181: 41,470 | H181: 43,930 | I181: 46,180 | J181: 48,460 | K181: 51,170 | L181: 54,430 | M181: 58,190 | N181: 62,140 | O181: 473,650
A182: 149 | B182: Low and moderate income savers credit | D182: 1,860 | E182: 1,990 | F182: 1,970 | G182: 2,140 | H182: 2,100 | I182: 4,170 | J182: 4,160 | K182: 4,090 | L182: 4,120 | M182: 4,060 | N182: 4,020 | O182: 32,820
A183: 150 | B183: Self-Employed plans | D183: 43,180 | E183: 43,960 | F183: 45,730 | G183: 54,910 | H183: 57,390 | I183: 60,130 | J183: 63,060 | K183: 66,430 | L183: 70,400 | M183: 74,120 | N183: 78,080 | O183: 614,210
A184: 151 | B184: Small employer pension plan startup credit | D184: =+Individual!D186+' Corporate'!D186 -> 0 | E184: =+Individual!E186+' Corporate'!E186 -> 0 | F184: =+Individual!F186+' Corporate'!F186 -> 320 | G184: =+Individual!G186+' Corporate'!G186 -> 380 | H184: =+Individual!H186+' Corporate'!H186 -> 360 | I184: =+Individual!I186+' Corporate'!I186 -> 310 | J184: =+Individual!J186+' Corporate'!J186 -> 280 | K184: =+Individual!K186+' Corporate'!K186 -> 230 | L184: =+Individual!L186+' Corporate'!L186 -> 180 | M184: =+Individual!M186+' Corporate'!M186 -> 130 | N184: =+Individual!N186+' Corporate'!N186 -> 130 | O184: =+SUM(E184:N184) -> 2,320
B185: Exclusion of other employee benefits:
A186: =+A184+1 -> 152 | B186: Premiums on group term life insurance | D186: 3,440 | E186: 3,500 | F186: 3,610 | G186: 4,100 | H186: 4,360 | I186: 4,500 | J186: 4,650 | K186: 4,810 | L186: 4,970 | M186: 5,130 | N186: 5,300 | O186: 44,930
A187: =+A186+1 -> 153 | B187: Premiums on accident and disability insurance | D187: 1,720 | E187: 1,730 | F187: 1,760 | G187: 1,970 | H187: 2,060 | I187: 2,100 | J187: 2,140 | K187: 2,190 | L187: 2,230 | M187: 2,280 | N187: 2,320 | O187: 20,780
A188: =+A187+1 -> 154 | B188: Income of trusts to finance supplementary unemployment benefits | D188: 40 | E188: 50 | F188: 50 | G188: 50 | H188: 50 | I188: 50 | J188: 50 | K188: 60 | L188: 60 | M188: 60 | N188: 60 | O188: 540
A189: =+A188+1 -> 155 | B189: Income of trusts to finance voluntary employee benefits associations | D189: 1,500 | E189: 1,560 | F189: 1,630 | G189: 1,700 | H189: 1,770 | I189: 1,850 | J189: 1,930 | K189: 2,010 | L189: 2,100 | M189: 2,200 | N189: 2,290 | O189: 19,040
A190: 156 | B190: Special Employee Stock Ownership Plan (ESOP) rules | D190: 220 | E190: 220 | F190: 230 | G190: 230 | H190: 240 | I190: 240 | J190: 260 | K190: 270 | L190: 270 | M190: 280 | N190: 290 | O190: 2,530
A191: 157 | B191: Additional deduction for the blind | D191: 50 | E191: 50 | F191: 60 | G191: 50 | H191: 50 | I191: 50 | J191: 60 | K191: 60 | L191: 60 | M191: 60 | N191: 70 | O191: 570
A192: 158 | B192: Additional deduction for the elderly | D192: 7,540 | E192: 8,070 | F192: 8,650 | G192: 7,460 | H192: 7,810 | I192: 8,280 | J192: 8,780 | K192: 9,290 | L192: 9,500 | M192: 9,980 | N192: 10,480 | O192: 88,300
A193: 159 | B193: Deductibility of casualty losses | D193: 0 | E193: 0 | F193: 0 | G193: 680 | H193: 1,040 | I193: 1,090 | J193: 1,140 | K193: 1,190 | L193: 1,260 | M193: 1,310 | N193: 1,360 | O193: 9,070
A194: 160 | B194: Earned income tax credit 2/ | D194: 2,700 | E194: 3,030 | F194: 3,180 | G194: 3,290 | H194: 5,020 | I194: 5,220 | J194: 5,410 | K194: 5,550 | L194: 5,760 | M194: 5,990 | N194: 6,170 | O194: 48,620
A195: 161 | B195: Recovery rebate credits 2/ | D195: 3,460 | E195: 990 | F195: 220 | G195: 0 | H195: 0 | I195: 0 | J195: 0 | K195: 0 | L195: 0 | M195: 0 | N195: 0 | O195: 1,210
A197: Social Security:
B198: Exclusion of social security benefits:
A199: =+A195+1 -> 162 | B199: Social Security benefits for retired and disabled workers and spouses, dependents and survivors | D199: 30,700 | E199: 30,810 | F199: 30,440 | G199: 34,430 | H199: 39,930 | I199: 41,350 | J199: 42,850 | K199: 44,380 | L199: 46,220 | M199: 48,170 | N199: 50,150 | O199: 408,730
A200: =+A199+1 -> 163 | B200: Credit for certain employer contributions to social security | D200: 1,520 | E200: 1,610 | F200: 1,700 | G200: 1,790 | H200: 1,880 | I200: 1,970 | J200: 2,060 | K200: 2,150 | L200: 2,240 | M200: 2,330 | N200: 2,420 | O200: 20,150
A202: Veterans benefits and services:
A203: =+A200+1 -> 164 | B203: Exclusion of veterans death benefits and disability compensation | D203: 11,640 | E203: 13,120 | F203: 14,040 | G203: 15,200 | H203: 17,380 | I203: 18,120 | J203: 18,840 | K203: 19,600 | L203: 20,430 | M203: 21,290 | N203: 22,160 | O203: 180,180
A204: =+A203+1 -> 165 | B204: Exclusion of veterans pensions | D204: 220 | E204: 210 | F204: 200 | G204: 210 | H204: 220 | I204: 220 | J204: 210 | K204: 210 | L204: 210 | M204: 200 | N204: 200 | O204: 2,090
A205: 166 | B205: Exclusion of GI bill benefits | D205: 1,460 | E205: 1,510 | F205: 1,560 | G205: 1,650 | H205: 1,850 | I205: 1,890 | J205: 1,930 | K205: 1,970 | L205: 2,010 | M205: 2,050 | N205: 2,090 | O205: 18,510
A206: 167 | B206: Exclusion of interest on veterans housing bonds | D206: 80 | E206: 60 | F206: 70 | G206: 80 | H206: 80 | I206: 80 | J206: 80 | K206: 90 | L206: 80 | M206: 80 | N206: 50 | O206: 750
A208: General purpose fiscal assistance:
A209: =+A206+1 -> 168 | B209: Exclusion of interest on public purpose State and local bonds | D209: 29,810 | E209: 24,120 | F209: 24,880 | G209: 27,000 | H209: 29,140 | I209: 29,450 | J209: 30,180 | K209: 32,320 | L209: 32,000 | M209: 30,900 | N209: 21,590 | O209: 281,580
A210: =+A209+1 -> 169 | B210: Build America Bonds 2/ | D210: 0 | E210: 0 | F210: 0 | G210: 0 | H210: 0 | I210: 0 | J210: 0 | K210: 0 | L210: 0 | M210: 0 | N210: 0 | O210: 0
A211: =+A210+1 -> 170 | B211: Deductibility of nonbusiness State and local taxes other than on owner-occupied homes 6/ | D211: 7,030 | E211: 6,580 | F211: 6,090 | G211: 65,920 | H211: 91,280 | I211: 92,130 | J211: 96,490 | K211: 101,330 | L211: 106,750 | M211: 112,220 | N211: 117,920 | O211: 796,710
A213: Interest:
A214: =+A211+1 -> 171 | B214: Deferral of interest on U.S. savings bonds | D214: 820 | E214: 810 | F214: 800 | G214: 800 | H214: 790 | I214: 780 | J214: 770 | K214: 760 | L214: 750 | M214: 750 | N214: 740 | O214: 7,750
A216: Addendum: Aid to State and local governments:
... 25 more rows

Sheet Table 20-2 - Ranked
A1: Table 20-2. INCOME TAX EXPENDITURES RANKED BY TOTAL 2024-2033 PROJECTED REVENUE EFFECT 1/
B2: (in millions of dollars)
B3: Provision | C3: 2023 | D3: 2024 | E3: 2024-33
A4: 127 | B4: Exclusion of employer contributions for medical insurance premiums and medical care 7/ | C4: 215,860 | D4: 231,010 | E4: 3,436,350
A5: 65 | B5: Exclusion of net imputed rental income | C5: 147,240 | D5: 151,950 | E5: 1,945,790
A6: 147 | B6: Defined contribution employer plans | C6: 133,860 | D6: 136,290 | E6: 1,904,220
A7: 73 | B7: Capital gains (except agriculture, timber, iron ore, and coal) | C7: 115,630 | D7: 114,130 | E7: 1,565,960
A8: 122 | B8: Deductibility of charitable contributions, other than education and health | C8: 47,410 | D8: 47,940 | E8: 846,670
A9: 61 | B9: Deductibility of mortgage interest on owner-occupied homes | C9: 31,820 | D9: 30,770 | E9: 828,470
A10: 170 | B10: Deductibility of nonbusiness State and local taxes other than on owner-occupied homes 6/ | C10: 7,030 | D10: 6,580 | E10: 796,710
A11: 146 | B11: Defined benefit employer plans | C11: 70,100 | D11: 68,860 | E11: 756,710
A12: 64 | B12: Capital gains exclusion on home sales | C12: 54,410 | D12: 58,230 | E12: 747,390
A13: 150 | B13: Self-Employed plans | C13: 43,180 | D13: 43,960 | E13: 614,210
A14: 72 | B14: Treatment of qualified dividends | C14: 35,880 | D14: 38,390 | E14: 517,650
A15: 75 | B15: Step-up basis of capital gains at death | C15: 49,240 | D15: 33,560 | E15: 509,580
A16: 148 | B16: Individual Retirement Accounts | C16: 32,690 | D16: 33,210 | E16: 473,650
A17: 4 | B17: Reduced tax rate on active income of controlled foreign corporations (normal tax method) | C17: 45,190 | D17: 46,540 | E17: 467,420
A18: 62 | B18: Deductibility of State and local property tax on owner-occupied homes 6/ | C18: 6,910 | D18: 6,410 | E18: 447,260
A19: 162 | B19: Social Security benefits for retired and disabled workers and spouses, dependents and survivors | C19: 30,700 | D19: 30,810 | E19: 408,730
A20: 8 | B20: Credit for increasing research activities | C20: 28,220 | D20: 30,040 | E20: 388,650
A21: 168 | B21: Exclusion of interest on public purpose State and local bonds | C21: 29,810 | D21: 24,120 | E21: 281,580
A22: 22 | B22: Energy production credit 2/ | C22: 7,450 | D22: 7,570 | E22: 276,610
A23: 139 | B23: Child credit 2/ | C23: 67,520 | D23: 63,740 | E23: 276,420
A24: 130 | B24: Deductibility of medical expenses | C24: 12,260 | D24: 12,900 | E24: 242,940
A25: 55 | B25: Exclusion of life insurance death benefits | C25: 15,320 | D25: 16,260 | E25: 187,040
A26: 1 | B26: Exclusion of benefits and allowances to armed forces personnel | C26: 15,990 | D26: 16,600 | E26: 182,420
A27: 129 | B27: Medical Savings Accounts / Health Savings Accounts | C27: 12,830 | D27: 13,610 | E27: 180,880
A28: 164 | B28: Exclusion of veterans death benefits and disability compensation | C28: 11,640 | D28: 13,120 | E28: 180,180
A29: 83 | B29: Allow 20-percent deduction to certain pass-through income | C29: 37,240 | D29: 61,850 | E29: 154,030
A30: 67 | B30: Credit for low-income housing investments | C30: 12,800 | D30: 13,630 | E30: 149,510
A31: 23 | B31: Energy investment credit 2/ | C31: 25,970 | D31: 27,510 | E31: 148,020
A32: 128 | B32: Self-employed medical insurance premiums | C32: 8,150 | D32: 8,520 | E32: 143,310
A33: 134 | B33: Deductibility of charitable contributions to health institutions | C33: 9,000 | D33: 9,060 | E33: 141,730
A34: 101 | B34: Tax credits for post-secondary education expenses 2/ | C34: 13,940 | D34: 13,860 | E34: 128,220
A35: 132 | B35: Refundable Premium Assistance Tax Credit 2/ | C35: 15,047 | D35: 14,935 | E35: 123,606
A36: 5 | B36: Deduction for foreign-derived intangible income derived from trade or business within the United States | C36: 15,240 | D36: 15,690 | E36: 120,340
A37: 31 | B37: Tax credits for clean vehicles 2/ | C37: 10,560 | D37: 15,570 | E37: 112,050
A38: 109 | B38: Deductibility of charitable contributions to educational institutions | C38: 6,230 | D38: 6,290 | E38: 104,570
A39: 58 | B39: Exclusion of interest spread of financial institutions | C39: 11,100 | D39: 9,010 | E39: 102,740
A40: 103 | B40: Qualified tuition programs (includes Education IRA) | C40: 3,020 | D40: 3,350 | E40: 92,160
A41: 119 | B41: Exclusion of employee meals and lodging (other than military) | C41: 7,530 | D41: 6,960 | E41: 90,020
A42: 142 | B42: Exclusion of workers' compensation benefits | C42: 8,870 | D42: 8,870 | E42: 88,530
A43: 158 | B43: Additional deduction for the elderly | C43: 7,540 | D43: 8,070 | E43: 88,300
A44: 100 | B44: Exclusion of scholarship and fellowship income (normal tax method) | C44: 4,430 | D44: 4,670 | E44: 65,880
A45: 76 | B45: Carryover basis of capital gains on gifts | C45: 4,590 | D45: 4,130 | E45: 65,550
A46: 108 | B46: Parental personal exemption for students age 19 or over | C46: 2,210 | D46: 3,280 | E46: 64,190
A47: 2 | B47: Exclusion of income earned abroad by U.S. citizens | C47: 5,420 | D47: 5,600 | E47: 62,210
A48: 78 | B48: Deferral of capital gains from like-kind exchanges | C48: 4,020 | D48: 4,230 | E48: 54,869
A49: 36 | B49: Credit for residential energy efficient property | C49: 7,090 | D49: 9,250 | E49: 49,540
A50: 68 | B50: Accelerated depreciation on rental housing (normal tax method) | C50: 2,440 | D50: 2,150 | E50: 49,350
A51: 66 | B51: Exception from passive loss rules for $25,000 of rental loss | C51: 5,470 | D51: 5,460 | E51: 49,120
A52: 160 | B52: Earned income tax credit 2/ | C52: 2,700 | D52: 3,030 | E52: 48,620
A53: 152 | B53: Premiums on group term life insurance | C53: 3,440 | D53: 3,500 | E53: 44,930
A54: 38 | B54: Advanced manufacturing production credit 2/ | C54: 430 | D54: 790 | E54: 44,340
A55: 30 | B55: Clean hydrogen production credit 2/ | C55: 340 | D55: 540 | E55: 43,710
A56: 120 | B56: Credit for child and dependent care expenses 2/ | C56: 3,480 | D56: 3,690 | E56: 39,730
A57: 45 | B57: Carbon oxide sequestration credit 2/ | C57: 330 | D57: 400 | E57: 36,150
A58: 54 | B58: Exemption of credit union income | C58: 2,970 | D58: 2,940 | E58: 35,800
A59: 135 | B59: Tax credit for orphan drug research | C59: 1,740 | D59: 1,940 | E59: 33,540
A60: 149 | B60: Low and moderate income savers credit | C60: 1,860 | D60: 1,990 | E60: 32,820
A61: 131 | B61: Exclusion of interest on hospital construction bonds | C61: 3,120 | D61: 2,530 | E61: 29,490
A62: 102 | B62: Deductibility of student-loan interest | C62: 560 | D62: 940 | E62: 29,270
A63: 6 | B63: Interest Charge Domestic International Sales Corporations (IC-DISCs) | C63: 1,620 | D63: 1,690 | E63: 23,340
A64: 87 | B64: Exclusion of reimbursed employee parking expenses | C64: 1,827 | D64: 1,890 | E64: 22,841
A65: 74 | B65: Capital gains exclusion of small corporation stock | C65: 1,780 | D65: 1,850 | E65: 22,170
A66: 105 | B66: Exclusion of interest on bonds for private nonprofit educational facilities | C66: 2,280 | D66: 1,850 | E66: 21,550
A67: 50 | B67: Capital gains treatment of certain agriculture income | C67: 1,550 | D67: 1,530 | E67: 20,980
A68: 153 | B68: Premiums on accident and disability insurance | C68: 1,720 | D68: 1,730 | E68: 20,780
A69: 63 | B69: Deferral of income from installment sales | C69: 1,750 | D69: 1,720 | E69: 20,770
A70: 163 | B70: Credit for certain employer contributions to social security | C70: 1,520 | D70: 1,610 | E70: 20,150
A71: 29 | B71: Clean fuel production credit 2/ 5/ | C71: 0 | D71: 0 | E71: 19,050
A72: 155 | B72: Income of trusts to finance voluntary employee benefits associations | C72: 1,500 | D72: 1,560 | E72: 19,040
A73: 166 | B73: Exclusion of GI bill benefits | C73: 1,460 | D73: 1,510 | E73: 18,510
A74: 110 | B74: Exclusion of employer-provided educational assistance | C74: 1,660 | D74: 1,770 | E74: 18,110
A75: 11 | B75: Excess of percentage over cost depletion, oil and gas | C75: 1,530 | D75: 1,590 | E75: 15,970
A76: 56 | B76: Exemption or special alternative tax for small property and casualty insurance companies | C76: 1,400 | D76: 1,430 | E76: 15,860
A77: 60 | B77: Exclusion of interest on rental housing bonds | C77: 1,610 | D77: 1,300 | E77: 15,220
A78: 115 | B78: Employer provided child care exclusion | C78: 760 | D78: 840 | E78: 13,430
A79: 124 | B79: Exclusion of parsonage allowances | C79: 959 | D79: 1,009 | E79: 12,857
A80: 35 | B80: Credit for energy efficiency improvements to existing homes | C80: 1,970 | D80: 1,580 | E80: 12,360
A81: 117 | B81: Assistance for adopted foster children | C81: 880 | D81: 940 | E81: 12,340
A82: 32 | B82: Tax credits for refueling property 2/ | C82: 170 | D82: 280 | E82: 11,270
A83: 91 | B83: Exclusion of interest for airport, dock, and similar bonds | C83: 1,050 | D83: 840 | E83: 9,850
A84: 94 | B84: New markets tax credit | C84: 1,210 | D84: 1,250 | E84: 9,630
A85: 118 | B85: Adoption credit and exclusion | C85: 870 | D85: 900 | E85: 9,530
A86: 159 | B86: Deductibility of casualty losses | C86: 0 | D86: 0 | E86: 9,070
A87: 143 | B87: Exclusion of public assistance benefits (normal tax method) | C87: 760 | D87: 720 | E87: 8,310
A88: 59 | B88: Exclusion of interest on owner-occupied mortgage subsidy bonds | C88: 880 | D88: 710 | E88: 8,280
A89: 123 | B89: Exclusion of certain foster care payments | C89: 500 | D89: 530 | E89: 8,010
A90: 171 | B90: Deferral of interest on U.S. savings bonds | C90: 820 | D90: 810 | E90: 7,750
A91: 37 | B91: Advanced energy property credit 2/ | C91: 260 | D91: 1,170 | E91: 7,430
A92: 114 | B92: Work opportunity tax credit | C92: 2,070 | D92: 2,130 | E92: 7,380
A93: 44 | B93: Tax incentives for preservation of historic structures | C93: 710 | D93: 670 | E93: 7,280
A94: 33 | B94: Allowance of deduction for certain energy efficient commercial building property | C94: 430 | D94: 520 | E94: 6,630
A95: 137 | B95: Distributions from retirement plans for premiums for health and long-term care insurance | C95: 470 | D95: 490 | E95: 6,230
A96: 136 | B96: Special Blue Cross/Blue Shield tax benefits | C96: 370 | D96: 380 | E96: 4,980
A97: 88 | B97: Exclusion for employer-provided transit passes | C97: 369 | D97: 381 | E97: 4,745
A98: 57 | B98: Tax exemption of insurance income earned by tax-exempt organizations | C98: 370 | D98: 380 | E98: 4,130
A99: 3 | B99: Exclusion of certain allowances for Federal employees abroad | C99: 280 | D99: 300 | E99: 3,820
A100: 113 | B100: Qualified school construction bonds 2/ | C100: 490 | D100: 470 | E100: 3,510
A101: 79 | B101: Depreciation of buildings other than rental housing (normal tax method) | C101: 920 | D101: -190 | E101: 3,370
A102: 40 | B102: Excess of percentage over cost depletion, nonfuel minerals | C102: 310 | D102: 330 | E102: 3,320
A103: 25 | B103: Zero-emission nuclear power production credit 2/ | C103: 0 | D103: 0 | E103: 3,170
A104: 48 | B104: Expensing of certain multiperiod production costs | C104: 250 | D104: 260 | E104: 3,120
A105: 43 | B105: Expensing of multiperiod timber growing costs | C105: 260 | D105: 260 | E105: 3,100
A106: 41 | B106: Exclusion of interest on bonds for water, sewage, and hazardous waste facilities | C106: 290 | D106: 230 | E106: 2,760
A107: 145 | B107: Exclusion of military disability pensions | C107: 200 | D107: 210 | E107: 2,600
A108: 156 | B108: Special Employee Stock Ownership Plan (ESOP) rules | C108: 220 | D108: 220 | E108: 2,530
A109: 112 | B109: Discharge of student loan indebtedness | C109: 100 | D109: 110 | E109: 2,420
A110: 151 | B110: Small employer pension plan startup credit | C110: 0 | D110: 0 | E110: 2,320
A111: 34 | B111: Credit for construction of new energy efficient homes | C111: 280 | D111: 200 | E111: 2,310
A112: 51 | B112: Income averaging for farmers | C112: 210 | D112: 210 | E112: 2,270
A113: 141 | B113: Exclusion of railroad retirement (Social Security equivalent) benefits | C113: 300 | D113: 280 | E113: 2,130
A114: 42 | B114: Capital gains treatment of certain timber income | C114: 150 | D114: 150 | E114: 2,110
A115: 165 | B115: Exclusion of veterans pensions | C115: 220 | D115: 210 | E115: 2,090
A116: 24 | B116: Advanced nuclear power production credit | C116: 30 | D116: 150 | E116: 2,060
A117: 9 | B117: Expensing of exploration and development costs, oil and gas | C117: 700 | D117: 70 | E117: 2,020
A118: 111 | B118: Special deduction for teacher expenses | C118: 160 | D118: 160 | E118: 1,900
A119: 26 | B119: Reduced tax rate for nuclear decommissioning funds | C119: 120 | D119: 120 | E119: 1,500
A120: 16 | B120: Amortize all geological and geophysical expenditures over 2 years | C120: 140 | D120: 150 | E120: 1,460
A121: 104 | B121: Exclusion of interest on student-loan bonds | C121: 150 | D121: 130 | E121: 1,460
A122: 47 | B122: Expensing of certain capital outlays | C122: 120 | D122: 120 | E122: 1,400
A123: 12 | B123: Excess of percentage over cost depletion, coal | C123: 90 | D123: 90 | E123: 1,230
A124: 161 | B124: Recovery rebate credits 2/ | C124: 3,460 | D124: 990 | E124: 1,210
A125: 92 | B125: Exemption of certain mutuals' and cooperatives' income | C125: 100 | D125: 100 | E125: 1,150
A126: 90 | B126: Exclusion of interest on bonds for Highway Projects and rail-truck transfer facilities | C126: 140 | D126: 140 | E126: 1,100
A127: 85 | B127: Tonnage tax | C127: 100 | D127: 100 | E127: 1,070
A128: 15 | B128: Marginal wells credit | C128: 190 | D128: 180 | E128: 1,000
A129: 77 | B129: Ordinary income treatment of loss from small business corporation stock sale | C129: 70 | D129: 80 | E129: 860
A130: 53 | B130: Expensing of reforestation expenditures | C130: 60 | D130: 70 | E130: 800
A131: 71 | B131: Exceptions from imputed interest rules | C131: 60 | D131: 70 | E131: 800
A132: 167 | B132: Exclusion of interest on veterans housing bonds | C132: 80 | D132: 60 | E132: 750
A133: 21 | B133: Credit for holding clean renewable energy bonds 2/ | C133: 70 | D133: 70 | E133: 700
A134: 49 | B134: Treatment of loans forgiven for solvent farmers | C134: 60 | D134: 60 | E134: 680
A135: 81 | B135: Exclusion of interest on small issue bonds | C135: 60 | D135: 60 | E135: 660
A136: 46 | B136: Deduction for endangered species recovery expenditures | C136: 30 | D136: 40 | E136: 610
A137: 95 | B137: Credit to holders of Gulf and Midwest Tax Credit Bonds . | C137: 100 | D137: 80 | E137: 610
A138: 157 | B138: Additional deduction for the blind | C138: 50 | D138: 50 | E138: 570
A139: 154 | B139: Income of trusts to finance supplementary unemployment benefits | C139: 40 | D139: 50 | E139: 540
A140: 96 | B140: Recovery Zone Bonds 2/ | C140: 90 | D140: 70 | E140: 530
A141: 17 | B141: Capital gains treatment of royalties on coal | C141: 50 | D141: 50 | E141: 510
A142: 107 | B142: Exclusion of interest on savings bonds redeemed to finance educational expenses | C142: 40 | D142: 40 | E142: 500
A143: 93 | B143: Empowerment zones | C143: 90 | D143: 90 | E143: 460
A144: 106 | B144: Credit for holders of zone academy bonds 2/ | C144: 90 | D144: 80 | E144: 450
A145: 70 | B145: Discharge of business indebtedness | C145: -10 | D145: 10 | E145: 400
A146: 20 | B146: Exclusion of utility conservation subsidies | C146: 50 | D146: 50 | E146: 330
A147: 69 | B147: Discharge of mortgage indebtedness | C147: 220 | D147: 140 | E147: 330
A148: 19 | B148: Qualified energy conservation bonds 2/ | C148: 30 | D148: 30 | E148: 300
A149: 116 | B149: Employer-provided child care credit | C149: 20 | D149: 20 | E149: 290
A150: 89 | B150: Tax credit for certain expenditures for maintaining railroad tracks | C150: 130 | D150: 80 | E150: 280
A151: 52 | B151: Deferral of gain on sale of farm refiners | C151: 15 | D151: 20 | E151: 220
A152: 39 | B152: Expensing of exploration and development costs, nonfuel minerals | C152: 70 | D152: 0 | E152: 200
A153: 99 | B153: Disaster employee retention credit | C153: 50 | D153: 40 | E153: 190
A154: 10 | B154: Expensing of exploration and development costs, coal | C154: 50 | D154: 0 | E154: 170
A155: 144 | B155: Exclusion of special benefits for disabled coal miners | C155: 20 | D155: 20 | E155: 130
A156: 125 | B156: Indian employment credit | C156: 30 | D156: 30 | E156: 110
A157: 13 | B157: Exception from passive loss limitation for working interests in oil and gas properties | C157: 10 | D157: 10 | E157: 100
A158: 86 | B158: Deferral of tax on shipping companies | C158: 10 | D158: 10 | E158: 100
A159: 97 | B159: Tribal Economic Development Bonds | C159: 10 | D159: 10 | E159: 100
A160: 121 | B160: Credit for disabled access expenditures | C160: 10 | D160: 10 | E160: 100
A161: 18 | B161: Exclusion of interest on energy facility bonds | C161: 0 | D161: 0 | E161: 60
A162: 27 | B162: Alcohol fuel credits 3/ | C162: 20 | D162: 20 | E162: 20
A163: 28 | B163: Bio-Diesel and small agri-biodiesel producer tax credits 4/ | C163: 20 | D163: 20 | E163: 20
A164: 133 | B164: Credit for employee health insurance expenses of small business | C164: 10 | D164: 10 | E164: 10
A165: 14 | B165: Enhanced oil recovery credit | C165: 0 | D165: 0 | E165: 0
A166: 138 | B166: Credit for family and sick leave taken by self-employed individuals 2/ | C166: 520 | D166: 0 | E166: 0
A167: 140 | B167: Other Dependent Tax Credit | C167: 0 | D167: 0 | E167: 0
A168: 169 | B168: Build America Bonds 2/ | C168: 0 | D168: 0 | E168: 0
A169: 82 | B169: Special rules for certain film and TV production | C169: 100 | D169: 180 | E169: -920
A170: 98 | B170: Opportunity Zones | C170: 2,080 | D170: 2,160 | E170: -7,450
A171: 80 | B171: Accelerated depreciation of machinery and equipment (normal tax method) | C171: 10,430 | D171: -3,730 | E171: -41,320
A172: 7 | B172: Expensing of research and experimentation expenditures (normal tax method) | C172: -38,660 | D172: -28,850 | E172: -52,400
A173: Note: | B173: See Table 20-1 footnotes for specific table information.

Sheet Table 20-3 - Present Value
A1: Table 20-3. PRESENT VALUE OF SELECTED TAX EXPENDITURES FOR ACTIVITY IN CALENDAR YEAR 2023
A2: (in millions of dollars)
B3: Provision | C3: 2023 Present Value of Revenue Loss
A4: 9 | B4: Expensing of exploration and development costs, oil and gas | C4: 870
A5: 10 | B5: Expensing of exploration and development costs, coal | C5: 80
A6: 39 | B6: Expensing of exploration and development costs, nonfuel minerals | C6: 80
A7: 43 | B7: Expensing of multiperiod timber growing costs | C7: 220
A8: 48 | B8: Expensing of certain multiperiod production costs | C8: 160
A9: 47 | B9: Expensing of certain capital outlays - agriculture | C9: 70
A10: 54 | B10: Expensing of reforestation expenditures | C10: 50
A11: 68 | B11: Accelerated depreciation on rental housing | C11: 4,380
A12: 79 | B12: Depreciation of buildings other than rental | C12: 2,100
A13: 80 | B13: Accelerated depreciation of machinery and equipment | C13: 27,760
A14: 67 | B14: Credit for low-income housing investments | C14: 12,790
A15: 103 | B15: Qualified tuition programs | C15: 8,690
A16: 146 | B16: Defined benefit employer plans | C16: 82,853
A17: 147 | B17: Defined contribution employer plans | C17: 198,720
A18: 148 | B18: Exclusion of IRA contributions and earnings | C18: 2,530
B19: Exclusion of Roth earnings and distributions | C19: 650
B20: Exclusion of non-deductible IRA earnings | C20: 550
A21: 152 | B21: Exclusion of contributions and earnings for Self-Employed plans | C21: 8,330
A22: 167 | B22: Exclusion of interest on public purpose State and local bonds | C22: 21,720
B23: Exclusion of interest on non-public purpose bonds 1/ | C23: 7,640
A24: 170 | B24: Deferral of interest on U.S. savings bonds | C24: 240
A25: 1/ | B25: Includes all components, other than public purpose, listed under ‘Exclusion of interest on State and local bonds’ in the Addendum to Table 20-1.

Sheet Table 20-4 - Outlays
A1: Table 20-4. ESTIMATES OF OUTLAY TAX EXPENDITURES FOR 2023-2033 1/
A2: (in millions of dollars)
D3: Total
D4: 2023 | E4: =+D4+1 -> 2024 | F4: =+E4+1 -> 2025 | G4: 2026 | H4: 2027 | I4: 2028 | J4: 2029 | K4: 2030 | L4: 2031 | M4: 2032 | N4: 2033 | O4: 2024-2033
A5: Energy:
A6: 19 | B6: Qualified energy conservation bonds 2/ | D6: 40 | E6: 30 | F6: 30 | G6: 30 | H6: 30 | I6: 30 | J6: 30 | K6: 30 | L6: 30 | M6: 30 | N6: 30 | O6: =+SUM(E6:N6) -> 300
A7: 21 | B7: Credit for holding clean renewable energy bonds 2/ | D7: 40 | E7: 40 | F7: 40 | G7: 40 | H7: 40 | I7: 40 | J7: 40 | K7: 40 | L7: 40 | M7: 40 | N7: 40 | O7: =+SUM(E7:N7) -> 400
A8: 22 | B8: Energy production credit 2/ | D8: 0 | E8: 390 | F8: 400 | G8: 570 | H8: 840 | I8: 1,180 | J8: 1,520 | K8: 1,790 | L8: 2,060 | M8: 2,360 | N8: 2,490 | O8: 13,600
A9: 23 | B9: Energy investment credit 2/ | D9: 0 | E9: 1,600 | F9: 1,260 | G9: 790 | H9: 700 | I9: 810 | J9: 650 | K9: 580 | L9: 950 | M9: 590 | N9: 630 | O9: 8,560
A10: 25 | B10: Zero-emission nuclear power production credit 2/ | D10: 0 | E10: 0 | F10: 0 | G10: 0 | H10: 0 | I10: 0 | J10: 0 | K10: 20 | L10: 90 | M10: 190 | N10: 90 | O10: 390
A11: 29 | B11: Clean fuel production credit 2/ 4/ | D11: 0 | E11: 0 | F11: 240 | G11: 330 | H11: 340 | I11: 90 | J11: 0 | K11: 0 | L11: 0 | M11: 0 | N11: 0 | O11: 1,000
A12: 30 | B12: Clean hydrogen production credit 2/ | D12: 0 | E12: 310 | F12: 610 | G12: 950 | H12: 1,390 | I12: 1,960 | J12: 2,690 | K12: 3,630 | L12: 4,780 | M12: 6,510 | N12: 8,480 | O12: 31,310
A13: 31 | B13: Tax credits for clean vehicles 2/ | D13: 0 | E13: 1,150 | F13: 2,210 | G13: 3,330 | H13: 4,640 | I13: 5,720 | J13: 7,470 | K13: 8,610 | L13: 9,830 | M13: 11,030 | N13: 4,690 | O13: 58,680
A14: 32 | B14: Tax credits for refueling property 2/ | D14: 0 | E14: 0 | F14: 0 | G14: 0 | H14: 10 | I14: 10 | J14: 10 | K14: 10 | L14: 10 | M14: 10 | N14: 0 | O14: 60
A15: 37 | B15: Advanced energy property credit 2/ | D15: 0 | E15: 30 | F15: 70 | G15: 80 | H15: 50 | I15: 50 | J15: 60 | K15: 40 | L15: 0 | M15: 10 | N15: 10 | O15: 400
A16: 38 | B16: Advanced manufacturing production credit 2/ | D16: 0 | E16: 5,840 | F16: 8,420 | G16: 13,560 | H16: 19,270 | I16: 24,510 | J16: 26,030 | K16: 27,090 | L16: 23,390 | M16: 19,060 | N16: 11,100 | O16: =+SUM(E16:N16) -> 178,270
A18: Natural resources and environment:
A19: 45 | B19: Carbon oxide sequestration credit 2/ | D19: 0 | E19: 190 | F19: 350 | G19: 470 | H19: 1,100 | I19: 1,600 | J19: 1,840 | K19: 3,490 | L19: 5,030 | M19: 5,700 | N19: 5,900 | O19: 25,670
A21: Commerce and housing:
A22: 84 | B22: Advanced manufacturing investment credit 2/ | D22: 0 | E22: 1,910 | F22: 1,970 | G22: 2,080 | H22: 1,400 | I22: 1,340 | J22: 1,120 | K22: 1,100 | L22: 860 | M22: 720 | N22: 560 | O22: =+SUM(E22:N22) -> 13,060
A24: Community and regional development:
A25: 96 | B25: Recovery Zone Bonds 2/ | D25: 60 | E25: 60 | F25: 60 | G25: 60 | H25: 60 | I25: 60 | J25: 60 | K25: 50 | L25: 50 | M25: 50 | N25: 50 | O25: 560
A27: Education, training, employment, and social services:
B28: Education:
A29: 101 | B29: Tax credits for post-secondary education expenses 2/ | D29: 2,490 | E29: 2,560 | F29: 2,480 | G29: 2,430 | H29: 2,390 | I29: 2,350 | J29: 2,310 | K29: 2,270 | L29: 2,230 | M29: 2,180 | N29: 2,130 | O29: 23,330
A30: 106 | B30: Credit for holders of zone academy bonds 2/ | D30: 40 | E30: 40 | F30: 40 | G30: 40 | H30: 40 | I30: 40 | J30: 40 | K30: 40 | L30: 40 | M30: 40 | N30: 40 | O30: 400
A31: 113 | B31: Qualified school construction bonds 2/ | D31: 560 | E31: 555 | F31: 550 | G31: 550 | H31: 545 | I31: 540 | J31: 540 | K31: 535 | L31: 530 | M31: 560 | N31: 550 | O31: 5,455
B32: Training, employment, and social services:
A33: 120 | B33: Credit for child and dependent care expenses 2/ | D33: 50 | E33: 0 | F33: 0 | G33: 0 | H33: 0 | I33: 0 | J33: 0 | K33: 0 | L33: 0 | M33: 0 | N33: 0 | O33: 0
A35: Health:
A36: 132 | B36: Refundable Premium Assistance Tax Credit 2/ | D36: 66,670 | E36: 66,620 | F36: 68,680 | G36: 60,590 | H36: 59,710 | I36: 62,150 | J36: 64,730 | K36: 67,810 | L36: 75,290 | M36: 80,200 | N36: 84,170 | O36: 689,950
A37: 138 | B37: Credit for family and sick leave taken by self-employed individuals 2/ | D37: 130 | E37: 0 | F37: 0 | G37: 0 | H37: 0 | I37: 0 | J37: 0 | K37: 0 | L37: 0 | M37: 0 | N37: 0 | O37: 0
A39: Income security:
A40: 139 | B40: Child credit 2/ | D40: 40,840 | E40: 45,190 | F40: 44,040 | G40: 42,790 | H40: 24,010 | I40: 23,910 | J40: 23,890 | K40: 24,060 | L40: 24,360 | M40: 24,740 | N40: 25,050 | O40: 302,040
A41: 159 | B41: Earned income tax credit 2/ | D41: 59,780 | E41: 67,180 | F41: 67,480 | G41: 67,180 | H41: 67,030 | I41: 68,370 | J41: 69,990 | K41: 72,000 | L41: 74,430 | M41: 76,880 | N41: 79,390 | O41: 709,930
A42: 160 | B42: Recovery rebate credits 2/ | D42: 2,150 | E42: 590 | F42: 130 | G42: 0 | H42: 0 | I42: 0 | J42: 0 | K42: 0 | L42: 0 | M42: 0 | N42: 0 | O42: 720
A44: General purpose fiscal assistance:
A45: 168 | B45: Build America Bonds 2/ | D45: 2170 | E45: 2150 | F45: 2120 | G45: 2010 | H45: 1980 | I45: 1960 | J45: 1940 | K45: 1910 | L45: 1890 | M45: 1870 | N45: 1850 | O45: =+SUM(E45:N45) -> 19,680
A46: 1/ | B46: All years referenced are fiscal years.
A47: 2/ | B47: See Table 20-1 for corresponding revenue loss estimates.

Sheet Corporate (hidden)
A2: ESTIMATES OF TOTAL CORPORATE INCOME TAX EXPENDITURES FOR FISCAL YEARS 2023-2033
A3: (in millions of dollars)
D4: Total from corporations
D5: 2023 | E5: =+D5+1 -> 2024 | F5: =+E5+1 -> 2025 | G5: 2026 | H5: 2027 | I5: 2028 | J5: 2029 | K5: 2030 | L5: 2031 | M5: 2032 | N5: 2033 | O5: 2024-2033
A7: National Defense
A8: 1 | B8: Exclusion of benefits and allowances to armed forces personnel | D8: 0 | E8: 0 | F8: 0 | G8: 0 | H8: 0 | I8: 0 | J8: 0 | K8: 0 | L8: 0 | M8: 0 | N8: 0 | O8: 0
A10: International affairs:
A11: 2 | B11: Exclusion of income earned abroad by U.S. citizens | D11: 0 | E11: 0 | F11: 0 | G11: 0 | H11: 0 | I11: 0 | J11: 0 | K11: 0 | L11: 0 | M11: 0 | N11: 0 | O11: 0
A12: 3 | B12: Exclusion of certain allowances for Federal employees abroad | D12: 0 | E12: 0 | F12: 0 | G12: 0 | H12: 0 | I12: 0 | J12: 0 | K12: 0 | L12: 0 | M12: 0 | N12: 0 | O12: 0
A13: 4 | B13: Reduced tax rate on active income of controlled foreign corporations (normal tax method) | D13: 45,190 | E13: 46,540 | F13: 47,940 | G13: 41,940 | H13: 43,200 | I13: 44,490 | J13: 45,830 | K13: 47,200 | L13: 48,620 | M13: 50,080 | N13: 51,580 | O13: 467,420
A14: 5 | B14: Deduction for foreign-derived intangible income derived from trade or business within the United States | D14: 15,240 | E14: 15,690 | F14: 16,170 | G14: 9,950 | H14: 10,250 | I14: 10,560 | J14: 10,870 | K14: 11,200 | L14: 11,530 | M14: 11,880 | N14: 12,240 | O14: 120,340
A15: 6 | B15: Interest Charge Domestic International Sales Corporations (IC-DISCs) | D15: 490 | E15: 510 | F15: 530 | G15: 600 | H15: 660 | I15: 700 | J15: 730 | K15: 770 | L15: 800 | M15: 830 | N15: 870 | O15: 7,000
A17: General science, space, and technology:
A18: 7 | B18: Expensing of research and experimentation expenditures (normal tax method) | D18: -32,740 | E18: -24,380 | F18: -15,030 | G18: -4,440 | H18: 0 | I18: 0 | J18: 0 | K18: 0 | L18: 0 | M18: 0 | N18: 0 | O18: -43,850
A19: 8 | B19: Credit for increasing research activities | D19: 25,820 | E19: 27,490 | F19: 29,160 | G19: 30,910 | H19: 32,640 | I19: 34,380 | J19: 36,170 | K19: 38,010 | L19: 39,920 | M19: 41,890 | N19: 43,910 | O19: 354,480
A21: Energy:
A22: 9 | B22: Expensing of exploration and development costs, oil and gas | D22: 160 | E22: 20 | F22: -10 | G22: -20 | H22: 30 | I22: 70 | J22: 70 | K22: 70 | L22: 70 | M22: 60 | N22: 60 | O22: 420
A23: 10 | B23: Expensing of exploration and development costs, coal | D23: 10 | E23: 0 | F23: 0 | G23: 0 | H23: 0 | I23: 10 | J23: 10 | K23: 10 | L23: 10 | M23: 10 | N23: 0 | O23: 50
A24: 11 | B24: Excess of percentage over cost depletion, oil and gas | D24: 970 | E24: 1,060 | F24: 990 | G24: 960 | H24: 960 | I24: 980 | J24: 1,000 | K24: 1,030 | L24: 1,070 | M24: 1,120 | N24: 1,170 | O24: 10,340
A25: 12 | B25: Excess of percentage over cost depletion, coal | D25: 60 | E25: 60 | F25: 60 | G25: 70 | H25: 70 | I25: 80 | J25: 80 | K25: 90 | L25: 90 | M25: 100 | N25: 100 | O25: 800
A26: 13 | B26: Exception from passive loss limitation for working interests in oil and gas properties | D26: 0 | E26: 0 | F26: 0 | G26: 0 | H26: 0 | I26: 0 | J26: 0 | K26: 0 | L26: 0 | M26: 0 | N26: 0 | O26: 0
A27: 14 | B27: Enhanced oil recovery credit | D27: 0 | E27: 0 | F27: 0 | G27: 0 | H27: 0 | I27: 0 | J27: 0 | K27: 0 | L27: 0 | M27: 0 | N27: 0 | O27: 0
A28: 15 | B28: Marginal wells credit | D28: 160 | E28: 150 | F28: 230 | G28: 230 | H28: 150 | I28: 70 | J28: 20 | K28: 0 | L28: 0 | M28: 0 | N28: 0 | O28: 850
A29: 16 | B29: Amortize all geological and geophysical expenditures over 2 years | D29: 50 | E29: 50 | F29: 50 | G29: 50 | H29: 50 | I29: 50 | J29: 50 | K29: 50 | L29: 50 | M29: 50 | N29: 50 | O29: 500
A30: 17 | B30: Capital gains treatment of royalties on coal | D30: 0 | E30: 0 | F30: 0 | G30: 0 | H30: 0 | I30: 0 | J30: 0 | K30: 0 | L30: 0 | M30: 0 | N30: 0 | O30: 0
A31: 18 | B31: Exclusion of interest on energy facility bonds | D31: 0 | E31: 0 | F31: 0 | G31: 0 | H31: 0 | I31: 0 | J31: 0 | K31: 0 | L31: 0 | M31: 0 | N31: 0 | O31: 0
A32: 19 | B32: Qualified energy conservation bonds 1/ | D32: 10 | E32: 10 | F32: 10 | G32: 10 | H32: 10 | I32: 10 | J32: 10 | K32: 10 | L32: 10 | M32: 10 | N32: 10 | O32: 100
A33: 20 | B33: Exclusion of utility conservation subsidies | D33: 0 | E33: 0 | F33: 0 | G33: 0 | H33: 0 | I33: 0 | J33: 0 | K33: 0 | L33: 0 | M33: 0 | N33: 0 | O33: 0
A34: 21 | B34: Credit for holding clean renewable energy bonds 1/ | D34: 20 | E34: 20 | F34: 20 | G34: 20 | H34: 20 | I34: 20 | J34: 20 | K34: 20 | L34: 20 | M34: 20 | N34: 20 | O34: 200
A35: 22 | B35: Energy production credit 1/ | D35: 7,080 | E35: 7,190 | F35: 9,050 | G35: 12,860 | H35: 18,600 | I35: 24,870 | J35: 30,030 | K35: 35,130 | L35: 39,040 | M35: 41,110 | N35: 44,900 | O35: 262,780
A36: 23 | B36: Energy investment credit 1/ | D36: 23,720 | E36: 25,110 | F36: 17,060 | G36: 12,590 | H36: 13,450 | I36: 11,550 | J36: 7,980 | K36: 15,720 | L36: 10,560 | M36: 10,130 | N36: 11,320 | O36: 135,470
A37: 24 | B37: Advanced nuclear power production credit | D37: 30 | E37: 150 | F37: 220 | G37: 240 | H37: 270 | I37: 280 | J37: 280 | K37: 280 | L37: 240 | M37: 90 | N37: 10 | O37: 2,060
A38: 25 | B38: Zero-emission nuclear power production credit 1/ | D38: 0 | E38: 0 | F38: 0 | G38: 0 | H38: 0 | I38: 0 | J38: 0 | K38: 170 | L38: 790 | M38: 1,580 | N38: 630 | O38: 3,170
A39: 26 | B39: Reduced tax rate for nuclear decommissioning funds | D39: 120 | E39: 120 | F39: 130 | G39: 130 | H39: 140 | I39: 150 | J39: 150 | K39: 160 | L39: 170 | M39: 170 | N39: 180 | O39: 1,500
A40: 27 | B40: Alcohol fuel credits 2/ | D40: 10 | E40: 10 | F40: 0 | G40: 0 | H40: 0 | I40: 0 | J40: 0 | K40: 0 | L40: 0 | M40: 0 | N40: 0 | O40: 10
A41: 28 | B41: Bio-Diesel and small agri-biodiesel producer tax credits 3/ | D41: 10 | E41: 10 | F41: 0 | G41: 0 | H41: 0 | I41: 0 | J41: 0 | K41: 0 | L41: 0 | M41: 0 | N41: 0 | O41: 10
A42: 29 | B42: Clean fuel production credit 1/ 4/ | D42: 0 | E42: 0 | F42: 4,090 | G42: 4,920 | H42: 5,310 | I42: 1,060 | J42: 270 | K42: 0 | L42: 0 | M42: 0 | N42: 0 | O42: 15,650
A43: 30 | B43: Clean hydrogen production credit 1/ | D43: 340 | E43: 540 | F43: 860 | G43: 1,330 | H43: 1,960 | I43: 2,780 | J43: 3,830 | K43: 5,170 | L43: 6,840 | M43: 8,910 | N43: 11,490 | O43: 43,710
A44: 31 | B44: Tax credits for clean vehicles 1/ | D44: 10,260 | E44: 15,540 | F44: 23,580 | G44: 28,930 | H44: 30,260 | I44: 26,230 | J44: 14,340 | K44: 4,670 | L44: -3,080 | M44: -11,320 | N44: -17,130 | O44: 112,020
A45: 32 | B45: Tax credits for refueling property 1/ | D45: 150 | E45: 250 | F45: 410 | G45: 630 | H45: 880 | I45: 1,090 | J45: 1,330 | K45: 1,480 | L45: 1,610 | M45: 1,710 | N45: 570 | O45: 9,960
A46: 33 | B46: Allowance of deduction for certain energy efficient commercial building property | D46: 70 | E46: 90 | F46: 100 | G46: 100 | H46: 100 | I46: 100 | J46: 110 | K46: 110 | L46: 120 | M46: 120 | N46: 110 | O46: 1,060
A47: 34 | B47: Credit for construction of new energy efficient homes | D47: 110 | E47: 80 | F47: 80 | G47: 90 | H47: 90 | I47: 100 | J47: 100 | K47: 100 | L47: 100 | M47: 100 | N47: 100 | O47: 940
A48: 35 | B48: Credit for energy efficiency improvements to existing homes | D48: 0 | E48: 0 | F48: 0 | G48: 0 | H48: 0 | I48: 0 | J48: 0 | K48: 0 | L48: 0 | M48: 0 | N48: 0 | O48: 0
A49: 36 | B49: Credit for residential energy efficient property | D49: 0 | E49: 0 | F49: 0 | G49: 0 | H49: 0 | I49: 0 | J49: 0 | K49: 0 | L49: 0 | M49: 0 | N49: 0 | O49: 0
A50: 37 | B50: Advanced energy property credit 1/ | D50: 230 | E50: 1,050 | F50: 1,410 | G50: 910 | H50: 880 | I50: 980 | J50: 830 | K50: 170 | L50: 140 | M50: 240 | N50: 100 | O50: 6,710
A51: 38 | B51: Advanced manufacturing production credit 1/ | D51: 410 | E51: 750 | F51: 1,260 | G51: 1,840 | H51: 2,490 | I51: 6,640 | J51: 9,220 | K51: 8,830 | L51: 6,510 | M51: 2,830 | N51: 1,750 | O51: 42,120
A53: Natural resources and environment:
A54: 39 | B54: Expensing of exploration and development costs, nonfuel minerals | D54: 20 | E54: 0 | F54: 0 | G54: 0 | H54: 0 | I54: 10 | J54: 10 | K54: 10 | L54: 10 | M54: 10 | N54: 10 | O54: 60
A55: 40 | B55: Excess of percentage over cost depletion, nonfuel minerals | D55: 200 | E55: 220 | F55: 200 | G55: 200 | H55: 200 | I55: 200 | J55: 210 | K55: 220 | L55: 220 | M55: 230 | N55: 240 | O55: 2,140
A56: 41 | B56: Exclusion of interest on bonds for water, sewage, and hazardous waste facilities | D56: 60 | E56: 30 | F56: 20 | G56: 20 | H56: 30 | I56: 30 | J56: 30 | K56: 60 | L56: 50 | M56: 40 | N56: 50 | O56: 360
A57: 42 | B57: Capital gains treatment of certain timber income | D57: 0 | E57: 0 | F57: 0 | G57: 0 | H57: 0 | I57: 0 | J57: 0 | K57: 0 | L57: 0 | M57: 0 | N57: 0 | O57: 0
A58: 43 | B58: Expensing of multiperiod timber growing costs | D58: 120 | E58: 120 | F58: 120 | G58: 120 | H58: 130 | I58: 130 | J58: 140 | K58: 140 | L58: 150 | M58: 160 | N58: 160 | O58: 1,370
A59: 44 | B59: Tax incentives for preservation of historic structures | D59: 590 | E59: 570 | F59: 560 | G59: 560 | H59: 570 | I59: 600 | J59: 620 | K59: 660 | L59: 700 | M59: 730 | N59: 660 | O59: 6,230
A60: 45 | B60: Carbon oxide sequestration credit 1/ | D60: 330 | E60: 400 | F60: 510 | G60: 680 | H60: 1,500 | I60: 2,230 | J60: 2,670 | K60: 4,840 | L60: 7,070 | M60: 7,960 | N60: 8,290 | O60: 36,150
A61: 46 | B61: Deduction for endangered species recovery expenditures | D61: 10 | E61: 10 | F61: 10 | G61: 10 | H61: 20 | I61: 20 | J61: 20 | K61: 20 | L61: 20 | M61: 20 | N61: 30 | O61: 180
A63: Agriculture:
A64: 47 | B64: Expensing of certain capital outlays | D64: 10 | E64: 10 | F64: 10 | G64: 10 | H64: 10 | I64: 10 | J64: 10 | K64: 10 | L64: 10 | M64: 10 | N64: 10 | O64: 100
A65: 48 | B65: Expensing of certain multiperiod production costs | D65: 10 | E65: 10 | F65: 10 | G65: 10 | H65: 20 | I65: 20 | J65: 20 | K65: 20 | L65: 20 | M65: 20 | N65: 20 | O65: 170
A66: 49 | B66: Treatment of loans forgiven for solvent farmers | D66: 0 | E66: 0 | F66: 0 | G66: 0 | H66: 0 | I66: 0 | J66: 0 | K66: 0 | L66: 0 | M66: 0 | N66: 0 | O66: 0
A67: 50 | B67: Capital gains treatment of certain agriculture income | D67: 0 | E67: 0 | F67: 0 | G67: 0 | H67: 0 | I67: 0 | J67: 0 | K67: 0 | L67: 0 | M67: 0 | N67: 0 | O67: 0
A68: 51 | B68: Income averaging for farmers | D68: 0 | E68: 0 | F68: 0 | G68: 0 | H68: 0 | I68: 0 | J68: 0 | K68: 0 | L68: 0 | M68: 0 | N68: 0 | O68: 0
A69: 52 | B69: Deferral of gain on sale of farm refiners | D69: 0 | E69: 0 | F69: 0 | G69: 0 | H69: 0 | I69: 0 | J69: 0 | K69: 0 | L69: 0 | M69: 0 | N69: 0 | O69: 0
A70: 53 | B70: Expensing of reforestation expenditures | D70: 10 | E70: 10 | F70: 10 | G70: 10 | H70: 10 | I70: 10 | J70: 10 | K70: 10 | L70: 10 | M70: 10 | N70: 10 | O70: 100
A72: Commerce and housing:
B73: Financial institutions and insurance:
A74: 54 | B74: Exemption of credit union income | D74: 2,970 | E74: 2,940 | F74: 3,110 | G74: 3,300 | H74: 3,460 | I74: 3,570 | J74: 3,680 | K74: 3,820 | L74: 3,850 | M74: 3,900 | N74: 4,170 | O74: 35,800
A75: 55 | B75: Exclusion of life insurance death benefits | D75: 1,440 | E75: 1,470 | F75: 1,500 | G75: 1,540 | H75: 1,570 | I75: 1,600 | J75: 1,640 | K75: 1,680 | L75: 1,710 | M75: 1,750 | N75: 1,800 | O75: 16,260
A76: 56 | B76: Exemption or special alternative tax for small property and casualty insurance companies | D76: 1,400 | E76: 1,430 | F76: 1,470 | G76: 1,510 | H76: 1,540 | I76: 1,560 | J76: 1,590 | K76: 1,630 | L76: 1,670 | M76: 1,710 | N76: 1,750 | O76: 15,860
A77: 57 | B77: Tax exemption of insurance income earned by tax-exempt organizations | D77: 370 | E77: 380 | F77: 390 | G77: 390 | H77: 400 | I77: 410 | J77: 420 | K77: 430 | L77: 430 | M77: 440 | N77: 440 | O77: 4,130
A78: 58 | B78: Exclusion of interest spread of financial institutions | D78: 0 | E78: 0 | F78: 0 | G78: 0 | H78: 0 | I78: 0 | J78: 0 | K78: 0 | L78: 0 | M78: 0 | N78: 0 | O78: 0
B79: Housing:
A80: 59 | B80: Exclusion of interest on owner-occupied mortgage subsidy bonds | D80: 190 | E80: 100 | F80: 70 | G80: 70 | H80: 90 | I80: 90 | J80: 100 | K80: 170 | L80: 150 | M80: 110 | N80: 140 | O80: 1,090
A81: 60 | B81: Exclusion of interest on rental housing bonds | D81: 350 | E81: 190 | F81: 140 | G81: 130 | H81: 170 | I81: 170 | J81: 180 | K81: 310 | L81: 280 | M81: 200 | N81: 250 | O81: 2,020
A82: 61 | B82: Deductibility of mortgage interest on owner-occupied homes | D82: 0 | E82: 0 | F82: 0 | G82: 0 | H82: 0 | I82: 0 | J82: 0 | K82: 0 | L82: 0 | M82: 0 | N82: 0 | O82: 0
A83: 62 | B83: Deductibility of State and local property tax on owner-occupied homes 5/ | D83: 0 | E83: 0 | F83: 0 | G83: 0 | H83: 0 | I83: 0 | J83: 0 | K83: 0 | L83: 0 | M83: 0 | N83: 0 | O83: 0
A84: 63 | B84: Deferral of income from installment sales | D84: 0 | E84: 0 | F84: 0 | G84: 0 | H84: 0 | I84: 0 | J84: 0 | K84: 0 | L84: 0 | M84: 0 | N84: 0 | O84: 0
A85: 64 | B85: Capital gains exclusion on home sales | D85: 0 | E85: 0 | F85: 0 | G85: 0 | H85: 0 | I85: 0 | J85: 0 | K85: 0 | L85: 0 | M85: 0 | N85: 0 | O85: 0
A86: 65 | B86: Exclusion of net imputed rental income | D86: 0 | E86: 0 | F86: 0 | G86: 0 | H86: 0 | I86: 0 | J86: 0 | K86: 0 | L86: 0 | M86: 0 | N86: 0 | O86: 0
A87: 66 | B87: Exception from passive loss rules for $25,000 of rental loss | D87: 0 | E87: 0 | F87: 0 | G87: 0 | H87: 0 | I87: 0 | J87: 0 | K87: 0 | L87: 0 | M87: 0 | N87: 0 | O87: 0
A88: 67 | B88: Credit for low-income housing investments | D88: 11,680 | E88: 12,430 | F88: 13,140 | G88: 1,300 | H88: 14,400 | I88: 14,840 | J88: 15,230 | K88: 15,600 | L88: 15,870 | M88: 16,120 | N88: 16,350 | O88: 135,280
A89: 68 | B89: Accelerated depreciation on rental housing (normal tax method) | D89: 20 | E89: 20 | F89: 20 | G89: 20 | H89: 30 | I89: 30 | J89: 40 | K89: 50 | L89: 60 | M89: 60 | N89: 70 | O89: 400
A90: 69 | B90: Discharge of mortgage indebtedness | D90: 0 | E90: 0 | F90: 0 | G90: 0 | H90: 0 | I90: 0 | J90: 0 | K90: 0 | L90: 0 | M90: 0 | N90: 0 | O90: 0
B91: Commerce:
A92: 70 | B92: Discharge of business indebtedness | D92: 0 | E92: 0 | F92: 0 | G92: 0 | H92: 0 | I92: 0 | J92: 0 | K92: 0 | L92: 0 | M92: 0 | N92: 0 | O92: 0
A93: 71 | B93: Exceptions from imputed interest rules | D93: 0 | E93: 0 | F93: 0 | G93: 0 | H93: 0 | I93: 0 | J93: 0 | K93: 0 | L93: 0 | M93: 0 | N93: 0 | O93: 0
A94: 72 | B94: Treatment of qualified dividends | D94: 0 | E94: 0 | F94: 0 | G94: 0 | H94: 0 | I94: 0 | J94: 0 | K94: 0 | L94: 0 | M94: 0 | N94: 0 | O94: 0
A95: 73 | B95: Capital gains (except agriculture, timber, iron ore, and coal) | D95: 0 | E95: 0 | F95: 0 | G95: 0 | H95: 0 | I95: 0 | J95: 0 | K95: 0 | L95: 0 | M95: 0 | N95: 0 | O95: 0
A96: 74 | B96: Capital gains exclusion of small corporation stock | D96: 0 | E96: 0 | F96: 0 | G96: 0 | H96: 0 | I96: 0 | J96: 0 | K96: 0 | L96: 0 | M96: 0 | N96: 0 | O96: 0
A97: 75 | B97: Step-up basis of capital gains at death | D97: 0 | E97: 0 | F97: 0 | G97: 0 | H97: 0 | I97: 0 | J97: 0 | K97: 0 | L97: 0 | M97: 0 | N97: 0 | O97: 0
A98: 76 | B98: Carryover basis of capital gains on gifts | D98: 0 | E98: 0 | F98: 0 | G98: 0 | H98: 0 | I98: 0 | J98: 0 | K98: 0 | L98: 0 | M98: 0 | N98: 0 | O98: 0
A99: 77 | B99: Ordinary income treatment of loss from small business corporation stock sale | D99: 0 | E99: 0 | F99: 0 | G99: 0 | H99: 0 | I99: 0 | J99: 0 | K99: 0 | L99: 0 | M99: 0 | N99: 0 | O99: 0
A100: 78 | B100: Deferral of capital gains from like-kind exchanges | D100: 1,400 | E100: 1,480 | F100: 2,550 | G100: 1,620 | H100: 1,690 | I100: 1,790 | J100: 1,870 | K100: 1,960 | L100: 2,070 | M100: 2,180 | N100: 2,290 | O100: 19,500
A101: 79 | B101: Depreciation of buildings other than rental housing (normal tax method) | D101: 40 | E101: -170 | F101: -230 | G101: -240 | H101: -260 | I101: -220 | J101: -150 | K101: 70 | L101: 0 | M101: 50 | N101: 90 | O101: -1,060
A102: 80 | B102: Accelerated depreciation of machinery and equipment (normal tax method) | D102: 1,190 | E102: -5,560 | F102: -10,510 | G102: -13,940 | H102: -16,710 | I102: -12,680 | J102: -6,920 | K102: -3,380 | L102: -1,200 | M102: 190 | N102: 1,170 | O102: -69,540
A103: 81 | B103: Exclusion of interest on small issue bonds | D103: 10 | E103: 10 | F103: 10 | G103: 10 | H103: 10 | I103: 10 | J103: 10 | K103: 10 | L103: 10 | M103: 10 | N103: 10 | O103: 100
A104: 82 | B104: Special rules for certain film and TV production | D104: 60 | E104: 110 | F104: 150 | G104: -230 | H104: -310 | I104: -150 | J104: -70 | K104: -30 | L104: -10 | M104: 0 | N104: 0 | O104: -540
A105: 83 | B105: Allow 20-percent deduction to certain pass-through income | D105: 0 | E105: 0 | F105: 0 | G105: 0 | H105: 0 | I105: 0 | J105: 0 | K105: 0 | L105: 0 | M105: 0 | N105: 0 | O105: 0
A106: 84 | B106: Advanced manufacturing investment credit 1/ | D106: 170 | E106: 3,590 | F106: 3,760 | G106: 3,980 | H106: 2,690 | I106: 2,510 | J106: 2,120 | K106: 2,130 | L106: 1,610 | M106: 1,200 | N106: 920 | O106: 24,510
A108: Transportation:
A109: 85 | B109: Tonnage tax | D109: 100 | E109: 100 | F109: 100 | G109: 100 | H109: 100 | I109: 110 | J109: 110 | K109: 110 | L109: 110 | M109: 110 | N109: 120 | O109: 1,070
A110: 86 | B110: Deferral of tax on shipping companies | D110: 10 | E110: 10 | F110: 10 | G110: 10 | H110: 10 | I110: 10 | J110: 10 | K110: 10 | L110: 10 | M110: 10 | N110: 10 | O110: 100
A111: 87 | B111: Exclusion of reimbursed employee parking expenses | D111: -1,303 | E111: -1,349 | F111: -1,396 | G111: -1,445 | H111: -1,510 | I111: -1,578 | J111: -1,649 | K111: -1,723 | L111: -1,801 | M111: -1,882 | N111: -1,966 | O111: -16,299
A112: 88 | B112: Exclusion for employer-provided transit passes | D112: -438 | E112: -454 | F112: -470 | G112: -486 | H112: -513 | I112: -541 | J112: -571 | K112: -602 | L112: -635 | M112: -670 | N112: -707 | O112: -5,649
A113: 89 | B113: Tax credit for certain expenditures for maintaining railroad tracks | D113: 80 | E113: 50 | F113: 40 | G113: 30 | H113: 20 | I113: 20 | J113: 10 | K113: 10 | L113: 10 | M113: 0 | N113: 0 | O113: 190
A114: 90 | B114: Exclusion of interest on bonds for Highway Projects and rail-truck transfer facilities | D114: 30 | E114: 30 | F114: 30 | G114: 30 | H114: 30 | I114: 20 | J114: 20 | K114: 20 | L114: 20 | M114: 10 | N114: 10 | O114: 220
A116: Community and regional development:
A117: 91 | B117: Exclusion of interest for airport, dock, and similar bonds | D117: 230 | E117: 120 | F117: 90 | G117: 90 | H117: 110 | I117: 110 | J117: 120 | K117: 200 | L117: 180 | M117: 130 | N117: 160 | O117: 1,310
A118: 92 | B118: Exemption of certain mutuals' and cooperatives' income | D118: 100 | E118: 100 | F118: 110 | G118: 110 | H118: 110 | I118: 110 | J118: 120 | K118: 120 | L118: 120 | M118: 120 | N118: 130 | O118: 1,150
A119: 93 | B119: Empowerment zones | D119: 70 | E119: 70 | F119: 70 | G119: 60 | H119: 40 | I119: 30 | J119: 20 | K119: 20 | L119: 20 | M119: 20 | N119: 10 | O119: 360
A120: 94 | B120: New markets tax credit | D120: 1,190 | E120: 1,230 | F120: 1,280 | G120: 1,330 | H120: 1,310 | I120: 1,200 | J120: 1,040 | K120: 850 | L120: 630 | M120: 400 | N120: 160 | O120: 9,430
A121: 95 | B121: Credit to holders of Gulf and Midwest Tax Credit Bonds . | D121: 20 | E121: 10 | F121: 10 | G121: 10 | H121: 10 | I121: 10 | J121: 10 | K121: 10 | L121: 10 | M121: 0 | N121: 0 | O121: 80
A122: 96 | B122: Recovery Zone Bonds 1/ | D122: 20 | E122: 10 | F122: 10 | G122: 10 | H122: 10 | I122: 10 | J122: 10 | K122: 10 | L122: 10 | M122: 0 | N122: 0 | O122: 80
A123: 97 | B123: Tribal Economic Development Bonds | D123: 0 | E123: 0 | F123: 0 | G123: 0 | H123: 0 | I123: 0 | J123: 0 | K123: 0 | L123: 0 | M123: 0 | N123: 0 | O123: 0
A124: 98 | B124: Opportunity Zones | D124: 390 | E124: 370 | F124: 360 | G124: -2,040 | H124: -1,390 | I124: 130 | J124: 170 | K124: 210 | L124: 250 | M124: 280 | N124: 300 | O124: -1,360
A125: 99 | B125: Disaster employee retention credit | D125: 40 | E125: 30 | F125: 30 | G125: 20 | H125: 20 | I125: 20 | J125: 10 | K125: 10 | L125: 10 | M125: 10 | N125: 10 | O125: 170
A127: Education, training, employment, and social services:
B128: Education:
A129: 100 | B129: Exclusion of scholarship and fellowship income (normal tax method) | D129: 0 | E129: 0 | F129: 0 | G129: 0 | H129: 0 | I129: 0 | J129: 0 | K129: 0 | L129: 0 | M129: 0 | N129: 0 | O129: 0
A130: 101 | B130: Tax credits for post-secondary education expenses 1/ | D130: 0 | E130: 0 | F130: 0 | G130: 0 | H130: 0 | I130: 0 | J130: 0 | K130: 0 | L130: 0 | M130: 0 | N130: 0 | O130: 0
A131: 102 | B131: Deductibility of student-loan interest | D131: 0 | E131: 0 | F131: 0 | G131: 0 | H131: 0 | I131: 0 | J131: 0 | K131: 0 | L131: 0 | M131: 0 | N131: 0 | O131: 0
A132: 103 | B132: Qualified tuition programs (includes Education IRA) | D132: 0 | E132: 0 | F132: 0 | G132: 0 | H132: 0 | I132: 0 | J132: 0 | K132: 0 | L132: 0 | M132: 0 | N132: 0 | O132: 0
A133: 104 | B133: Exclusion of interest on student-loan bonds | D133: 30 | E133: 20 | F133: 10 | G133: 10 | H133: 20 | I133: 20 | J133: 20 | K133: 30 | L133: 30 | M133: 20 | N133: 20 | O133: 200
A134: 105 | B134: Exclusion of interest on bonds for private nonprofit educational facilities | D134: 490 | E134: 270 | F134: 190 | G134: 190 | H134: 240 | I134: 240 | J134: 260 | K134: 440 | L134: 390 | M134: 290 | N134: 360 | O134: 2,870
A135: 106 | B135: Credit for holders of zone academy bonds 1/ | D135: 90 | E135: 80 | F135: 60 | G135: 50 | H135: 50 | I135: 40 | J135: 40 | K135: 40 | L135: 30 | M135: 30 | N135: 30 | O135: 450
A136: 107 | B136: Exclusion of interest on savings bonds redeemed to finance educational expenses | D136: 0 | E136: 0 | F136: 0 | G136: 0 | H136: 0 | I136: 0 | J136: 0 | K136: 0 | L136: 0 | M136: 0 | N136: 0 | O136: 0
A137: 108 | B137: Parental personal exemption for students age 19 or over | D137: 0 | E137: 0 | F137: 0 | G137: 0 | H137: 0 | I137: 0 | J137: 0 | K137: 0 | L137: 0 | M137: 0 | N137: 0 | O137: 0
A138: 109 | B138: Deductibility of charitable contributions to educational institutions | D138: 700 | E138: 710 | F138: 700 | G138: 720 | H138: 810 | I138: 860 | J138: 920 | K138: 970 | L138: 1,030 | M138: 1,110 | N138: 1,200 | O138: 9,030
A139: 110 | B139: Exclusion of employer-provided educational assistance | D139: 0 | E139: 0 | F139: 0 | G139: 0 | H139: 0 | I139: 0 | J139: 0 | K139: 0 | L139: 0 | M139: 0 | N139: 0 | O139: 0
A140: 111 | B140: Special deduction for teacher expenses | D140: 0 | E140: 0 | F140: 0 | G140: 0 | H140: 0 | I140: 0 | J140: 0 | K140: 0 | L140: 0 | M140: 0 | N140: 0 | O140: 0
A141: 112 | B141: Discharge of student loan indebtedness | D141: 0 | E141: 0 | F141: 0 | G141: 0 | H141: 0 | I141: 0 | J141: 0 | K141: 0 | L141: 0 | M141: 0 | N141: 0 | O141: 0
A142: 113 | B142: Qualified school construction bonds 1/ | D142: 120 | E142: 120 | F142: 110 | G142: 100 | H142: 100 | I142: 90 | J142: 80 | K142: 80 | L142: 70 | M142: 60 | N142: 60 | O142: 870
B143: Training, employment, and social services:
A144: 114 | B144: Work opportunity tax credit | D144: 1,550 | E144: 1,590 | F144: 1,640 | G144: 960 | H144: 380 | I144: 250 | J144: 190 | K144: 140 | L144: 110 | M144: 80 | N144: 60 | O144: 5,400
A145: 115 | B145: Employer provided child care exclusion | D145: 0 | E145: 0 | F145: 0 | G145: 0 | H145: 0 | I145: 0 | J145: 0 | K145: 0 | L145: 0 | M145: 0 | N145: 0 | O145: 0
A146: 116 | B146: Employer-provided child care credit | D146: 20 | E146: 20 | F146: 20 | G146: 20 | H146: 20 | I146: 20 | J146: 20 | K146: 30 | L146: 30 | M146: 30 | N146: 30 | O146: 240
A147: 117 | B147: Assistance for adopted foster children | D147: 0 | E147: 0 | F147: 0 | G147: 0 | H147: 0 | I147: 0 | J147: 0 | K147: 0 | L147: 0 | M147: 0 | N147: 0 | O147: 0
A148: 118 | B148: Adoption credit and exclusion | D148: 0 | E148: 0 | F148: 0 | G148: 0 | H148: 0 | I148: 0 | J148: 0 | K148: 0 | L148: 0 | M148: 0 | N148: 0 | O148: 0
A149: 119 | B149: Exclusion of employee meals and lodging (other than military) | D149: -120 | E149: -460 | F149: -700 | G149: -730 | H149: -760 | I149: -790 | J149: -820 | K149: -860 | L149: -1,900 | M149: -970 | N149: -1,020 | O149: -9,010
A150: 120 | B150: Credit for child and dependent care expenses 1/ | D150: 0 | E150: 0 | F150: 0 | G150: 0 | H150: 0 | I150: 0 | J150: 0 | K150: 0 | L150: 0 | M150: 0 | N150: 0 | O150: 0
A151: 121 | B151: Credit for disabled access expenditures | D151: 0 | E151: 0 | F151: 0 | G151: 0 | H151: 0 | I151: 0 | J151: 0 | K151: 0 | L151: 0 | M151: 0 | N151: 0 | O151: 0
A152: 122 | B152: Deductibility of charitable contributions, other than education and health | D152: 1,160 | E152: 1,150 | F152: 1,140 | G152: 1,170 | H152: 1,320 | I152: 1,400 | J152: 1,490 | K152: 1,560 | L152: 1,650 | M152: 1,750 | N152: 1,860 | O152: 14,490
A153: 123 | B153: Exclusion of certain foster care payments | D153: 0 | E153: 0 | F153: 0 | G153: 0 | H153: 0 | I153: 0 | J153: 0 | K153: 0 | L153: 0 | M153: 0 | N153: 0 | O153: 0
A154: 124 | B154: Exclusion of parsonage allowances | D154: 0 | E154: 0 | F154: 0 | G154: 0 | H154: 0 | I154: 0 | J154: 0 | K154: 0 | L154: 0 | M154: 0 | N154: 0 | O154: 0
A155: 125 | B155: Indian employment credit | D155: 10 | E155: 10 | F155: 10 | G155: 10 | H155: 10 | I155: 10 | J155: 0 | K155: 0 | L155: 0 | M155: 0 | N155: 0 | O155: 50
A156: 126 | B156: Employer-provided paid family and medical leave credit | D156: 60 | E156: 70 | F156: 70 | G156: 40 | H156: 10 | I156: 0 | J156: 0 | K156: 0 | L156: 0 | M156: 0 | N156: 0 | O156: 190
A158: Health:
A159: 127 | B159: Exclusion of employer contributions for medical insurance premiums and medical care 6/ | D159: 0 | E159: 0 | F159: 0 | G159: 0 | H159: 0 | I159: 0 | J159: 0 | K159: 0 | L159: 0 | M159: 0 | N159: 0 | O159: 0
A160: 128 | B160: Self-employed medical insurance premiums | D160: 0 | E160: 0 | F160: 0 | G160: 0 | H160: 0 | I160: 0 | J160: 0 | K160: 0 | L160: 0 | M160: 0 | N160: 0 | O160: 0
A161: 129 | B161: Medical Savings Accounts / Health Savings Accounts | D161: 0 | E161: 0 | F161: 0 | G161: 0 | H161: 0 | I161: 0 | J161: 0 | K161: 0 | L161: 0 | M161: 0 | N161: 0 | O161: 0
A162: 130 | B162: Deductibility of medical expenses | D162: 0 | E162: 0 | F162: 0 | G162: 0 | H162: 0 | I162: 0 | J162: 0 | K162: 0 | L162: 0 | M162: 0 | N162: 0 | O162: 0
A163: 131 | B163: Exclusion of interest on hospital construction bonds | D163: 670 | E163: 370 | F163: 260 | G163: 260 | H163: 330 | I163: 330 | J163: 360 | K163: 600 | L163: 540 | M163: 400 | N163: 490 | O163: 3,940
A164: 132 | B164: Refundable Premium Assistance Tax Credit 1/ | D164: 0 | E164: 0 | F164: 0 | G164: 0 | H164: 0 | I164: 0 | J164: 0 | K164: 0 | L164: 0 | M164: 0 | N164: 0 | O164: 0
A165: 133 | B165: Credit for employee health insurance expenses of small business | D165: 0 | E165: 0 | F165: 0 | G165: 0 | H165: 0 | I165: 0 | J165: 0 | K165: 0 | L165: 0 | M165: 0 | N165: 0 | O165: 0
A166: 134 | B166: Deductibility of charitable contributions to health institutions | D166: 3,840 | E166: 3,850 | F166: 3,830 | G166: 3,920 | H166: 4,460 | I166: 4,750 | J166: 5,050 | K166: 5,320 | L166: 5,620 | M166: 5,960 | N166: 6,320 | O166: 49,080
A167: 135 | B167: Tax credit for orphan drug research | D167: 1,730 | E167: 1,930 | F167: 2,150 | G167: 2,410 | H167: 2,690 | I167: 3,010 | J167: 3,360 | K167: 3,760 | L167: 4,200 | M167: 4,690 | N167: 5,240 | O167: 33,440
A168: 136 | B168: Special Blue Cross/Blue Shield tax benefits | D168: 370 | E168: 380 | F168: 400 | G168: 420 | H168: 450 | I168: 470 | J168: 500 | K168: 530 | L168: 570 | M168: 610 | N168: 650 | O168: 4,980
A169: 137 | B169: Distributions from retirement plans for premiums for health and long-term care insurance | D169: 470 | E169: 490 | F169: 500 | G169: 590 | H169: 630 | I169: 650 | J169: 660 | K169: 670 | L169: 670 | M169: 680 | N169: 690 | O169: 6,230
A170: 138 | B170: Credit for family and sick leave taken by self-employed individuals 1/ | D170: 0 | E170: 0 | F170: 0 | G170: 0 | H170: 0 | I170: 0 | J170: 0 | K170: 0 | L170: 0 | M170: 0 | N170: 0 | O170: 0
A172: Income security:
A173: 139 | B173: Child credit 1/ | D173: 0 | E173: 0 | F173: 0 | G173: 0 | H173: 0 | I173: 0 | J173: 0 | K173: 0 | L173: 0 | M173: 0 | N173: 0 | O173: 0
A174: 140 | B174: Other Dependent Tax Credit | D174: 0 | E174: 0 | F174: 0 | G174: 0 | H174: 0 | I174: 0 | J174: 0 | K174: 0 | L174: 0 | M174: 0 | N174: 0 | O174: 0
A175: 141 | B175: Exclusion of railroad retirement (Social Security equivalent) benefits | D175: 0 | E175: 0 | F175: 0 | G175: 0 | H175: 0 | I175: 0 | J175: 0 | K175: 0 | L175: 0 | M175: 0 | N175: 0 | O175: 0
A176: 142 | B176: Exclusion of workers' compensation benefits | D176: 0 | E176: 0 | F176: 0 | G176: 0 | H176: 0 | I176: 0 | J176: 0 | K176: 0 | L176: 0 | M176: 0 | N176: 0 | O176: 0
A177: 143 | B177: Exclusion of public assistance benefits (normal tax method) | D177: 0 | E177: 0 | F177: 0 | G177: 0 | H177: 0 | I177: 0 | J177: 0 | K177: 0 | L177: 0 | M177: 0 | N177: 0 | O177: 0
A178: 144 | B178: Exclusion of special benefits for disabled coal miners | D178: 0 | E178: 0 | F178: 0 | G178: 0 | H178: 0 | I178: 0 | J178: 0 | K178: 0 | L178: 0 | M178: 0 | N178: 0 | O178: 0
A179: 145 | B179: Exclusion of military disability pensions | D179: 0 | E179: 0 | F179: 0 | G179: 0 | H179: 0 | I179: 0 | J179: 0 | K179: 0 | L179: 0 | M179: 0 | N179: 0 | O179: 0
B180: Net exclusion of pension contributions and earnings: | D180: 0 | E180: 0 | F180: 0 | G180: 0 | H180: 0 | I180: 0 | J180: 0 | K180: 0 | L180: 0 | M180: 0 | N180: 0
A181: 146 | B181: Defined benefit employer plans | D181: 0 | E181: 0 | F181: 0 | G181: 0 | H181: 0 | I181: 0 | J181: 0 | K181: 0 | L181: 0 | M181: 0 | N181: 0 | O181: 0
A182: 147 | B182: Defined contribution employer plans | D182: 0 | E182: 0 | F182: 0 | G182: 0 | H182: 0 | I182: 0 | J182: 0 | K182: 0 | L182: 0 | M182: 0 | N182: 0 | O182: 0
A183: 148 | B183: Individual Retirement Accounts | D183: 0 | E183: 0 | F183: 0 | G183: 0 | H183: 0 | I183: 0 | J183: 0 | K183: 0 | L183: 0 | M183: 0 | N183: 0 | O183: 0
A184: 149 | B184: Low and moderate income savers credit | D184: 0 | E184: 0 | F184: 0 | G184: 0 | H184: 0 | I184: 0 | J184: 0 | K184: 0 | L184: 0 | M184: 0 | N184: 0 | O184: 0
A185: 150 | B185: Self-Employed plans | D185: 0 | E185: 0 | F185: 0 | G185: 0 | H185: 0 | I185: 0 | J185: 0 | K185: 0 | L185: 0 | M185: 0 | N185: 0 | O185: 0
A186: 151 | B186: Small employer pension plan startup credit | D186: 0 | E186: 0 | F186: 30 | G186: 40 | H186: 40 | I186: 30 | J186: 30 | K186: 20 | L186: 20 | M186: 10 | N186: 10 | O186: =+SUM(E186:N186) -> 230
B187: Exclusion of other employee benefits:
A188: =+A186+1 -> 152 | B188: Premiums on group term life insurance | D188: 0 | E188: 0 | F188: 0 | G188: 0 | H188: 0 | I188: 0 | J188: 0 | K188: 0 | L188: 0 | M188: 0 | N188: 0 | O188: 0
A189: =+A188+1 -> 153 | B189: Premiums on accident and disability insurance | D189: 0 | E189: 0 | F189: 0 | G189: 0 | H189: 0 | I189: 0 | J189: 0 | K189: 0 | L189: 0 | M189: 0 | N189: 0 | O189: 0
A190: =+A189+1 -> 154 | B190: Income of trusts to finance supplementary unemployment benefits | D190: 0 | E190: 0 | F190: 0 | G190: 0 | H190: 0 | I190: 0 | J190: 0 | K190: 0 | L190: 0 | M190: 0 | N190: 0 | O190: 0
A191: =+A190+1 -> 155 | B191: Income of trusts to finance voluntary employee benefits associations | D191: 1,500 | E191: 1,560 | F191: 1,630 | G191: 1,700 | H191: 1,770 | I191: 1,850 | J191: 1,930 | K191: 2,010 | L191: 2,100 | M191: 2,200 | N191: 2,290 | O191: 19,040
A192: 156 | B192: Special Employee Stock Ownership Plan (ESOP) rules | D192: 190 | E192: 190 | F192: 200 | G192: 200 | H192: 210 | I192: 210 | J192: 220 | K192: 230 | L192: 230 | M192: 240 | N192: 250 | O192: 2,180
A193: 157 | B193: Additional deduction for the blind | D193: 0 | E193: 0 | F193: 0 | G193: 0 | H193: 0 | I193: 0 | J193: 0 | K193: 0 | L193: 0 | M193: 0 | N193: 0 | O193: 0
A194: 158 | B194: Additional deduction for the elderly | D194: 0 | E194: 0 | F194: 0 | G194: 0 | H194: 0 | I194: 0 | J194: 0 | K194: 0 | L194: 0 | M194: 0 | N194: 0 | O194: 0
A195: 159 | B195: Deductibility of casualty losses | D195: 0 | E195: 0 | F195: 0 | G195: 0 | H195: 0 | I195: 0 | J195: 0 | K195: 0 | L195: 0 | M195: 0 | N195: 0 | O195: 0
A196: 160 | B196: Earned income tax credit 1/ | D196: 0 | E196: 0 | F196: 0 | G196: 0 | H196: 0 | I196: 0 | J196: 0 | K196: 0 | L196: 0 | M196: 0 | N196: 0 | O196: 0
A197: 161 | B197: Recovery rebate credits 1/ | D197: 0 | E197: 0 | F197: 0 | G197: 0 | H197: 0 | I197: 0 | J197: 0 | K197: 0 | L197: 0 | M197: 0 | N197: 0 | O197: 0
A199: Social Security:
B200: Exclusion of social security benefits: | D200: 0 | E200: 0 | F200: 0 | G200: 0 | H200: 0 | I200: 0 | J200: 0 | K200: 0 | L200: 0 | M200: 0 | N200: 0
A201: =+A197+1 -> 162 | B201: Social Security benefits for retired and disabled workers and spouses, dependents and survivors | D201: 0 | E201: 0 | F201: 0 | G201: 0 | H201: 0 | I201: 0 | J201: 0 | K201: 0 | L201: 0 | M201: 0 | N201: 0 | O201: 0
A202: =+A201+1 -> 163 | B202: Credit for certain employer contributions to social security | D202: 240 | E202: 250 | F202: 260 | G202: 270 | H202: 280 | I202: 290 | J202: 300 | K202: 310 | L202: 320 | M202: 330 | N202: 340 | O202: 2,950
A204: Veterans benefits and services:
A205: =+A202+1 -> 164 | B205: Exclusion of veterans death benefits and disability compensation | D205: 0 | E205: 0 | F205: 0 | G205: 0 | H205: 0 | I205: 0 | J205: 0 | K205: 0 | L205: 0 | M205: 0 | N205: 0 | O205: 0
A206: =+A205+1 -> 165 | B206: Exclusion of veterans pensions | D206: 0 | E206: 0 | F206: 0 | G206: 0 | H206: 0 | I206: 0 | J206: 0 | K206: 0 | L206: 0 | M206: 0 | N206: 0 | O206: 0
A207: 166 | B207: Exclusion of GI bill benefits | D207: 0 | E207: 0 | F207: 0 | G207: 0 | H207: 0 | I207: 0 | J207: 0 | K207: 0 | L207: 0 | M207: 0 | N207: 0 | O207: 0
A208: 167 | B208: Exclusion of interest on veterans housing bonds | D208: 20 | E208: 10 | F208: 10 | G208: 10 | H208: 10 | I208: 10 | J208: 10 | K208: 20 | L208: 10 | M208: 10 | N208: 10 | O208: 110
A210: General purpose fiscal assistance:
A211: =+A208+1 -> 168 | B211: Exclusion of interest on public purpose State and local bonds | D211: 6,430 | E211: 3,520 | F211: 2,520 | G211: 2,470 | H211: 3,120 | I211: 3,160 | J211: 3,420 | K211: 5,710 | L211: 5,150 | M211: 3,790 | N211: 4,680 | O211: 37,540
A212: =+A211+1 -> 169 | B212: Build America Bonds 1/ | D212: 0 | E212: 0 | F212: 0 | G212: 0 | H212: 0 | I212: 0 | J212: 0 | K212: 0 | L212: 0 | M212: 0 | N212: 0 | O212: 0
A213: =+A212+1 -> 170 | B213: Deductibility of nonbusiness State and local taxes other than on owner-occupied homes 5/ | D213: 0 | E213: 0 | F213: 0 | G213: 0 | H213: 0 | I213: 0 | J213: 0 | K213: 0 | L213: 0 | M213: 0 | N213: 0 | O213: 0
A215: Interest:
A216: =+A213+1 -> 171 | B216: Deferral of interest on U.S. savings bonds | D216: 0 | E216: 0 | F216: 0 | G216: 0 | H216: 0 | I216: 0 | J216: 0 | K216: 0 | L216: 0 | M216: 0 | N216: 0 | O216: 0
O217: 0
... 17 more rows

Sheet Individual (hidden)
A2: ESTIMATES OF TOTAL INDIVIDUAL INCOME TAX EXPENDITURES FOR FISCAL YEARS 2023-2033
A3: (in millions of dollars)
D4: Total from individuals
D5: 2023 | E5: =+D5+1 -> 2024 | F5: =+E5+1 -> 2025 | G5: 2026 | H5: 2027 | I5: 2028 | J5: 2029 | K5: 2030 | L5: 2031 | M5: 2032 | N5: 2033 | O5: 2024-2033
A7: National Defense
A8: 1 | B8: Exclusion of benefits and allowances to armed forces personnel | D8: 15,990 | E8: 16,600 | F8: 17,250 | G8: 17,940 | H8: 16,740 | I8: 16,990 | J8: 17,650 | K8: 18,440 | L8: 19,310 | M8: 20,250 | N8: 21,250 | O8: 182,420
A10: International affairs:
A11: 2 | B11: Exclusion of income earned abroad by U.S. citizens | D11: 5,420 | E11: 5,600 | F11: 5,730 | G11: 5,870 | H11: 6,000 | I11: 6,140 | J11: 6,280 | K11: 6,420 | L11: 6,570 | M11: 6,720 | N11: 6,880 | O11: 62,210
A12: 3 | B12: Exclusion of certain allowances for Federal employees abroad | D12: 280 | E12: 300 | F12: 310 | G12: 330 | H12: 350 | I12: 370 | J12: 390 | K12: 410 | L12: 430 | M12: 450 | N12: 480 | O12: 3,820
A13: 4 | B13: Reduced tax rate on active income of controlled foreign corporations (normal tax method) | D13: 0 | E13: 0 | F13: 0 | G13: 0 | H13: 0 | I13: 0 | J13: 0 | K13: 0 | L13: 0 | M13: 0 | N13: 0 | O13: 0
A14: 5 | B14: Deduction for foreign-derived intangible income derived from trade or business within the United States | D14: 0 | E14: 0 | F14: 0 | G14: 0 | H14: 0 | I14: 0 | J14: 0 | K14: 0 | L14: 0 | M14: 0 | N14: 0 | O14: 0
A15: 6 | B15: Interest Charge Domestic International Sales Corporations (IC-DISCs) | D15: 1,130 | E15: 1,180 | F15: 1,250 | G15: 1,410 | H15: 1,540 | I15: 1,630 | J15: 1,710 | K15: 1,790 | L15: 1,860 | M15: 1,940 | N15: 2,030 | O15: 16,340
A17: General science, space, and technology:
A18: 7 | B18: Expensing of research and experimentation expenditures (normal tax method) | D18: -5,920 | E18: -4,470 | F18: -2,910 | G18: -1,170 | H18: 0 | I18: 0 | J18: 0 | K18: 0 | L18: 0 | M18: 0 | N18: 0 | O18: -8,550
A19: 8 | B19: Credit for increasing research activities | D19: 2,400 | E19: 2,550 | F19: 2,720 | G19: 2,890 | H19: 3,070 | I19: 3,260 | J19: 3,470 | K19: 3,690 | L19: 3,920 | M19: 4,170 | N19: 4,430 | O19: 34,170
A21: Energy:
A22: 9 | B22: Expensing of exploration and development costs, oil and gas | D22: 540 | E22: 50 | F22: -40 | G22: -60 | H22: 110 | I22: 260 | J22: 280 | K22: 270 | L22: 260 | M22: 240 | N22: 230 | O22: 1,600
A23: 10 | B23: Expensing of exploration and development costs, coal | D23: 40 | E23: 0 | F23: 0 | G23: -10 | H23: 10 | I23: 20 | J23: 20 | K23: 20 | L23: 20 | M23: 20 | N23: 20 | O23: 120
A24: 11 | B24: Excess of percentage over cost depletion, oil and gas | D24: 560 | E24: 530 | F24: 500 | G24: 510 | H24: 530 | I24: 550 | J24: 560 | K24: 580 | L24: 600 | M24: 620 | N24: 650 | O24: 5,630
A25: 12 | B25: Excess of percentage over cost depletion, coal | D25: 30 | E25: 30 | F25: 30 | G25: 40 | H25: 40 | I25: 40 | J25: 50 | K25: 50 | L25: 50 | M25: 50 | N25: 50 | O25: 430
A26: 13 | B26: Exception from passive loss limitation for working interests in oil and gas properties | D26: 10 | E26: 10 | F26: 10 | G26: 10 | H26: 10 | I26: 10 | J26: 10 | K26: 10 | L26: 10 | M26: 10 | N26: 10 | O26: 100
A27: 14 | B27: Enhanced oil recovery credit | D27: 0 | E27: 0 | F27: 0 | G27: 0 | H27: 0 | I27: 0 | J27: 0 | K27: 0 | L27: 0 | M27: 0 | N27: 0 | O27: 0
A28: 15 | B28: Marginal wells credit | D28: 30 | E28: 30 | F28: 40 | G28: 40 | H28: 30 | I28: 10 | J28: 0 | K28: 0 | L28: 0 | M28: 0 | N28: 0 | O28: 150
A29: 16 | B29: Amortize all geological and geophysical expenditures over 2 years | D29: 90 | E29: 100 | F29: 100 | G29: 100 | H29: 100 | I29: 100 | J29: 100 | K29: 90 | L29: 90 | M29: 90 | N29: 90 | O29: 960
A30: 17 | B30: Capital gains treatment of royalties on coal | D30: 50 | E30: 50 | F30: 50 | G30: 50 | H30: 60 | I30: 50 | J30: 50 | K30: 50 | L30: 50 | M30: 50 | N30: 50 | O30: 510
A31: 18 | B31: Exclusion of interest on energy facility bonds | D31: 0 | E31: 0 | F31: 0 | G31: 0 | H31: 10 | I31: 10 | J31: 10 | K31: 10 | L31: 10 | M31: 10 | N31: 0 | O31: 60
A32: 19 | B32: Qualified energy conservation bonds 1/ | D32: 20 | E32: 20 | F32: 20 | G32: 20 | H32: 20 | I32: 20 | J32: 20 | K32: 20 | L32: 20 | M32: 20 | N32: 20 | O32: 200
A33: 20 | B33: Exclusion of utility conservation subsidies | D33: 50 | E33: 50 | F33: 40 | G33: 40 | H33: 40 | I33: 30 | J33: 30 | K33: 30 | L33: 30 | M33: 20 | N33: 20 | O33: 330
A34: 21 | B34: Credit for holding clean renewable energy bonds 1/ | D34: 50 | E34: 50 | F34: 50 | G34: 50 | H34: 50 | I34: 50 | J34: 50 | K34: 50 | L34: 50 | M34: 50 | N34: 50 | O34: 500
A35: 22 | B35: Energy production credit 1/ | D35: 370 | E35: 380 | F35: 480 | G35: 680 | H35: 980 | I35: 1,310 | J35: 1,580 | K35: 1,850 | L35: 2,050 | M35: 2,160 | N35: 2,360 | O35: 13,830
A36: 23 | B36: Energy investment credit 1/ | D36: 2,250 | E36: 2,400 | F36: 1,610 | G36: 1,170 | H36: 1,260 | I36: 1,050 | J36: 700 | K36: 1,470 | L36: 950 | M36: 910 | N36: 1,030 | O36: 12,550
A37: 24 | B37: Advanced nuclear power production credit | D37: 0 | E37: 0 | F37: 0 | G37: 0 | H37: 0 | I37: 0 | J37: 0 | K37: 0 | L37: 0 | M37: 0 | N37: 0 | O37: 0
A38: 25 | B38: Zero-emission nuclear power production credit 1/ | D38: 0 | E38: 0 | F38: 0 | G38: 0 | H38: 0 | I38: 0 | J38: 0 | K38: 0 | L38: 0 | M38: 0 | N38: 0 | O38: 0
A39: 26 | B39: Reduced tax rate for nuclear decommissioning funds | D39: 0 | E39: 0 | F39: 0 | G39: 0 | H39: 0 | I39: 0 | J39: 0 | K39: 0 | L39: 0 | M39: 0 | N39: 0 | O39: 0
A40: 27 | B40: Alcohol fuel credits 2/ | D40: 10 | E40: 10 | F40: 0 | G40: 0 | H40: 0 | I40: 0 | J40: 0 | K40: 0 | L40: 0 | M40: 0 | N40: 0 | O40: 10
A41: 28 | B41: Bio-Diesel and small agri-biodiesel producer tax credits 3/ | D41: 10 | E41: 10 | F41: 0 | G41: 0 | H41: 0 | I41: 0 | J41: 0 | K41: 0 | L41: 0 | M41: 0 | N41: 0 | O41: 10
A42: 29 | B42: Clean fuel production credit 1/ 4/ | D42: 0 | E42: 0 | F42: 850 | G42: 1,070 | H42: 1,180 | I42: 240 | J42: 60 | K42: 0 | L42: 0 | M42: 0 | N42: 0 | O42: 3,400
A43: 30 | B43: Clean hydrogen production credit 1/ | D43: 0 | E43: 0 | F43: 0 | G43: 0 | H43: 0 | I43: 0 | J43: 0 | K43: 0 | L43: 0 | M43: 0 | N43: 0 | O43: 0
A44: 31 | B44: Tax credits for clean vehicles 1/ | D44: 300 | E44: 30 | F44: 0 | G44: 0 | H44: 0 | I44: 0 | J44: 0 | K44: 0 | L44: 0 | M44: 0 | N44: 0 | O44: 30
A45: 32 | B45: Tax credits for refueling property 1/ | D45: 20 | E45: 30 | F45: 50 | G45: 80 | H45: 110 | I45: 140 | J45: 180 | K45: 200 | L45: 220 | M45: 240 | N45: 60 | O45: 1,310
A46: 33 | B46: Allowance of deduction for certain energy efficient commercial building property | D46: 360 | E46: 430 | F46: 510 | G46: 530 | H46: 530 | I46: 550 | J46: 580 | K46: 600 | L46: 620 | M46: 620 | N46: 600 | O46: 5,570
A47: 34 | B47: Credit for construction of new energy efficient homes | D47: 170 | E47: 120 | F47: 130 | G47: 140 | H47: 140 | I47: 140 | J47: 140 | K47: 140 | L47: 140 | M47: 140 | N47: 140 | O47: 1,370
A48: 35 | B48: Credit for energy efficiency improvements to existing homes | D48: 1,970 | E48: 1,580 | F48: 1,500 | G48: 1,420 | H48: 1,350 | I48: 1,280 | J48: 1,220 | K48: 1,160 | L48: 1,100 | M48: 1,050 | N48: 700 | O48: 12,360
A49: 36 | B49: Credit for residential energy efficient property | D49: 7,090 | E49: 9,250 | F49: 6,150 | G49: 4,850 | H49: 4,000 | I49: 3,700 | J49: 4,620 | K49: 4,260 | L49: 4,310 | M49: 4,220 | N49: 4,180 | O49: 49,540
A50: 37 | B50: Advanced energy property credit 1/ | D50: 30 | E50: 120 | F50: 150 | G50: 100 | H50: 90 | I50: 110 | J50: 90 | K50: 20 | L50: 10 | M50: 20 | N50: 10 | O50: 720
A51: 38 | B51: Advanced manufacturing production credit 1/ | D51: 20 | E51: 40 | F51: 70 | G51: 100 | H51: 130 | I51: 350 | J51: 490 | K51: 460 | L51: 340 | M51: 150 | N51: 90 | O51: 2,220
A53: Natural resources and environment:
A54: 39 | B54: Expensing of exploration and development costs, nonfuel minerals | D54: 50 | E54: 0 | F54: 0 | G54: -10 | H54: 10 | I54: 20 | J54: 30 | K54: 30 | L54: 20 | M54: 20 | N54: 20 | O54: 140
A55: 40 | B55: Excess of percentage over cost depletion, nonfuel minerals | D55: 110 | E55: 110 | F55: 100 | G55: 110 | H55: 110 | I55: 110 | J55: 120 | K55: 120 | L55: 130 | M55: 130 | N55: 140 | O55: 1,180
A56: 41 | B56: Exclusion of interest on bonds for water, sewage, and hazardous waste facilities | D56: 230 | E56: 200 | F56: 220 | G56: 240 | H56: 260 | I56: 260 | J56: 260 | K56: 260 | L56: 260 | M56: 270 | N56: 170 | O56: 2,400
A57: 42 | B57: Capital gains treatment of certain timber income | D57: 150 | E57: 150 | F57: 160 | G57: 180 | H57: 200 | I57: 210 | J57: 220 | K57: 230 | L57: 240 | M57: 250 | N57: 270 | O57: 2,110
A58: 43 | B58: Expensing of multiperiod timber growing costs | D58: 140 | E58: 140 | F58: 140 | G58: 160 | H58: 160 | I58: 170 | J58: 180 | K58: 180 | L58: 190 | M58: 200 | N58: 210 | O58: 1,730
A59: 44 | B59: Tax incentives for preservation of historic structures | D59: 120 | E59: 100 | F59: 90 | G59: 90 | H59: 100 | I59: 100 | J59: 100 | K59: 110 | L59: 120 | M59: 120 | N59: 120 | O59: 1,050
A60: 45 | B60: Carbon oxide sequestration credit 1/ | D60: 0 | E60: 0 | F60: 0 | G60: 0 | H60: 0 | I60: 0 | J60: 0 | K60: 0 | L60: 0 | M60: 0 | N60: 0 | O60: 0
A61: 46 | B61: Deduction for endangered species recovery expenditures | D61: 20 | E61: 30 | F61: 30 | G61: 30 | H61: 40 | I61: 40 | J61: 40 | K61: 50 | L61: 50 | M61: 60 | N61: 60 | O61: 430
A63: Agriculture:
A64: 47 | B64: Expensing of certain capital outlays | D64: 110 | E64: 110 | F64: 110 | G64: 130 | H64: 140 | I64: 140 | J64: 140 | K64: 130 | L64: 130 | M64: 130 | N64: 140 | O64: 1,300
A65: 48 | B65: Expensing of certain multiperiod production costs | D65: 240 | E65: 250 | F65: 260 | G65: 300 | H65: 310 | I65: 310 | J65: 310 | K65: 300 | L65: 300 | M65: 300 | N65: 310 | O65: 2,950
A66: 49 | B66: Treatment of loans forgiven for solvent farmers | D66: 60 | E66: 60 | F66: 60 | G66: 70 | H66: 70 | I66: 70 | J66: 70 | K66: 70 | L66: 70 | M66: 70 | N66: 70 | O66: 680
A67: 50 | B67: Capital gains treatment of certain agriculture income | D67: 1,550 | E67: 1,530 | F67: 1,590 | G67: 1,770 | H67: 1,970 | I67: 2,070 | J67: 2,180 | K67: 2,280 | L67: 2,400 | M67: 2,530 | N67: 2,660 | O67: 20,980
A68: 51 | B68: Income averaging for farmers | D68: 210 | E68: 210 | F68: 220 | G68: 230 | H68: 230 | I68: 230 | J68: 230 | K68: 230 | L68: 230 | M68: 230 | N68: 230 | O68: 2,270
A69: 52 | B69: Deferral of gain on sale of farm refiners | D69: 15 | E69: 20 | F69: 20 | G69: 20 | H69: 20 | I69: 20 | J69: 20 | K69: 25 | L69: 25 | M69: 25 | N69: 25 | O69: 220
A70: 53 | B70: Expensing of reforestation expenditures | D70: 50 | E70: 60 | F70: 60 | G70: 70 | H70: 70 | I70: 70 | J70: 70 | K70: 70 | L70: 70 | M70: 80 | N70: 80 | O70: 700
A72: Commerce and housing:
B73: Financial institutions and insurance:
A74: 54 | B74: Exemption of credit union income | D74: 0 | E74: 0 | F74: 0 | G74: 0 | H74: 0 | I74: 0 | J74: 0 | K74: 0 | L74: 0 | M74: 0 | N74: 0 | O74: 0
A75: 55 | B75: Exclusion of life insurance death benefits | D75: 13,880 | E75: 14,790 | F75: 15,170 | G75: 15,820 | H75: 16,750 | I75: 17,010 | J75: 17,380 | K75: 17,830 | L75: 18,270 | M75: 18,680 | N75: 19,080 | O75: 170,780
A76: 56 | B76: Exemption or special alternative tax for small property and casualty insurance companies | D76: 0 | E76: 0 | F76: 0 | G76: 0 | H76: 0 | I76: 0 | J76: 0 | K76: 0 | L76: 0 | M76: 0 | N76: 0 | O76: 0
A77: 57 | B77: Tax exemption of insurance income earned by tax-exempt organizations | D77: 0 | E77: 0 | F77: 0 | G77: 0 | H77: 0 | I77: 0 | J77: 0 | K77: 0 | L77: 0 | M77: 0 | N77: 0 | O77: 0
A78: 58 | B78: Exclusion of interest spread of financial institutions | D78: 11,100 | E78: 9,010 | F78: 9,330 | G78: 9,810 | H78: 10,200 | I78: 10,360 | J78: 10,440 | K78: 10,610 | L78: 10,830 | M78: 11,010 | N78: 11,140 | O78: 102,740
B79: Housing:
A80: 59 | B80: Exclusion of interest on owner-occupied mortgage subsidy bonds | D80: 690 | E80: 610 | F80: 660 | G80: 720 | H80: 770 | I80: 770 | J80: 790 | K80: 780 | L80: 790 | M80: 800 | N80: 500 | O80: 7,190
A81: 60 | B81: Exclusion of interest on rental housing bonds | D81: 1,260 | E81: 1,110 | F81: 1,210 | G81: 1,330 | H81: 1,410 | I81: 1,420 | J81: 1,450 | K81: 1,440 | L81: 1,450 | M81: 1,470 | N81: 910 | O81: 13,200
A82: 61 | B82: Deductibility of mortgage interest on owner-occupied homes | D82: 31,820 | E82: 30,770 | F82: 30,920 | G82: 67,280 | H82: 87,740 | I82: 91,630 | J82: 95,620 | K82: 99,780 | L82: 104,210 | M82: 108,570 | N82: 111,950 | O82: 828,470
A83: 62 | B83: Deductibility of State and local property tax on owner-occupied homes 5/ | D83: 6,910 | E83: 6,410 | F83: 6,090 | G83: 34,180 | H83: 50,080 | I83: 52,530 | J83: 54,640 | K83: 56,890 | L83: 59,490 | M83: 62,120 | N83: 64,830 | O83: 447,260
A84: 63 | B84: Deferral of income from installment sales | D84: 1,750 | E84: 1,720 | F84: 1,780 | G84: 1,860 | H84: 1,940 | I84: 2,020 | J84: 2,100 | K84: 2,190 | L84: 2,290 | M84: 2,380 | N84: 2,490 | O84: 20,770
A85: 64 | B85: Capital gains exclusion on home sales | D85: 54,410 | E85: 58,230 | F85: 60,400 | G85: 66,830 | H85: 71,490 | I85: 74,300 | J85: 77,040 | K85: 79,900 | L85: 83,100 | M85: 86,410 | N85: 89,690 | O85: 747,390
A86: 65 | B86: Exclusion of net imputed rental income | D86: 147,240 | E86: 151,950 | F86: 156,250 | G86: 174,960 | H86: 183,050 | I86: 191,070 | J86: 199,350 | K86: 208,160 | L86: 217,490 | M86: 226,790 | N86: 236,720 | O86: 1,945,790
A87: 66 | B87: Exception from passive loss rules for $25,000 of rental loss | D87: 5,470 | E87: 5,460 | F87: 5,600 | G87: 5,840 | H87: 5,600 | I87: 5,270 | J87: 4,830 | K87: 4,340 | L87: 4,030 | M87: 4,010 | N87: 4,140 | O87: 49,120
A88: 67 | B88: Credit for low-income housing investments | D88: 1,120 | E88: 1,200 | F88: 1,260 | G88: 1,330 | H88: 1,390 | I88: 1,430 | J88: 1,470 | K88: 1,500 | L88: 1,530 | M88: 1,550 | N88: 1,570 | O88: 14,230
A89: 68 | B89: Accelerated depreciation on rental housing (normal tax method) | D89: 2,420 | E89: 2,130 | F89: 2,510 | G89: 3,220 | H89: 3,930 | I89: 4,590 | J89: 5,260 | K89: 5,910 | L89: 6,530 | M89: 7,140 | N89: 7,730 | O89: 48,950
A90: 69 | B90: Discharge of mortgage indebtedness | D90: 220 | E90: 140 | F90: 140 | G90: 50 | H90: 0 | I90: 0 | J90: 0 | K90: 0 | L90: 0 | M90: 0 | N90: 0 | O90: 330
B91: Commerce:
A92: 70 | B92: Discharge of business indebtedness | D92: -10 | E92: 10 | F92: 40 | G92: 60 | H92: 70 | I92: 60 | J92: 50 | K92: 40 | L92: 20 | M92: 20 | N92: 30 | O92: 400
A93: 71 | B93: Exceptions from imputed interest rules | D93: 60 | E93: 70 | F93: 70 | G93: 80 | H93: 80 | I93: 80 | J93: 80 | K93: 80 | L93: 80 | M93: 90 | N93: 90 | O93: 800
A94: 72 | B94: Treatment of qualified dividends | D94: 35,880 | E94: 38,390 | F94: 39,990 | G94: 44,470 | H94: 49,190 | I94: 51,470 | J94: 53,730 | K94: 56,150 | L94: 58,710 | M94: 61,380 | N94: 64,170 | O94: 517,650
A95: 73 | B95: Capital gains (except agriculture, timber, iron ore, and coal) | D95: 115,630 | E95: 114,130 | F95: 118,590 | G95: 132,180 | H95: 146,890 | I95: 154,710 | J95: 162,580 | K95: 170,590 | L95: 179,150 | M95: 188,540 | N95: 198,600 | O95: 1,565,960
A96: 74 | B96: Capital gains exclusion of small corporation stock | D96: 1,780 | E96: 1,850 | F96: 1,930 | G96: 2,000 | H96: 2,070 | I96: 2,150 | J96: 2,240 | K96: 2,330 | L96: 2,430 | M96: 2,530 | N96: 2,640 | O96: 22,170
A97: 75 | B97: Step-up basis of capital gains at death | D97: 49,240 | E97: 33,560 | F97: 35,940 | G97: 38,960 | H97: 44,060 | I97: 48,230 | J97: 52,300 | K97: 56,600 | L97: 61,240 | M97: 66,620 | N97: 72,070 | O97: 509,580
A98: 76 | B98: Carryover basis of capital gains on gifts | D98: 4,590 | E98: 4,130 | F98: 4,470 | G98: 5,720 | H98: 6,890 | I98: 6,860 | J98: 6,790 | K98: 6,890 | L98: 7,170 | M98: 7,800 | N98: 8,830 | O98: 65,550
A99: 77 | B99: Ordinary income treatment of loss from small business corporation stock sale | D99: 70 | E99: 80 | F99: 80 | G99: 80 | H99: 80 | I99: 80 | J99: 90 | K99: 90 | L99: 90 | M99: 90 | N99: 100 | O99: 860
A100: 78 | B100: Deferral of capital gains from like-kind exchanges | D100: 2,620 | E100: 2,750 | F100: 2,880 | G100: 3,949 | H100: 3,180 | I100: 3,340 | J100: 3,510 | K100: 3,680 | L100: 3,870 | M100: 4,060 | N100: 4,150 | O100: 35,369
A101: 79 | B101: Depreciation of buildings other than rental housing (normal tax method) | D101: 880 | E101: -20 | F101: -160 | G101: -160 | H101: -100 | I101: 90 | J101: 370 | K101: 670 | L101: 970 | M101: 1,250 | N101: 1,520 | O101: 4,430
A102: 80 | B102: Accelerated depreciation of machinery and equipment (normal tax method) | D102: 9,240 | E102: 1,830 | F102: -1,070 | G102: -4,480 | H102: -9,150 | I102: -4,480 | J102: 2,810 | K102: 7,150 | L102: 10,000 | M102: 11,990 | N102: 13,620 | O102: 28,220
A103: 81 | B103: Exclusion of interest on small issue bonds | D103: 50 | E103: 50 | F103: 50 | G103: 60 | H103: 60 | I103: 60 | J103: 60 | K103: 60 | L103: 60 | M103: 60 | N103: 40 | O103: 560
A104: 82 | B104: Special rules for certain film and TV production | D104: 40 | E104: 70 | F104: 90 | G104: -150 | H104: -210 | I104: -100 | J104: -50 | K104: -20 | L104: -10 | M104: 0 | N104: 0 | O104: -380
A105: 83 | B105: Allow 20-percent deduction to certain pass-through income | D105: 37,240 | E105: 61,850 | F105: 65,180 | G105: 27,000 | H105: 0 | I105: 0 | J105: 0 | K105: 0 | L105: 0 | M105: 0 | N105: 0 | O105: 154,030
A106: 84 | B106: Advanced manufacturing investment credit 1/ | D106: 20 | E106: 40 | F106: 70 | G106: 100 | H106: 130 | I106: 350 | J106: 490 | K106: 460 | L106: 340 | M106: 150 | N106: 90 | O106: 2,220
A108: Transportation:
A109: 85 | B109: Tonnage tax | D109: 0 | E109: 0 | F109: 0 | G109: 0 | H109: 0 | I109: 0 | J109: 0 | K109: 0 | L109: 0 | M109: 0 | N109: 0 | O109: 0
A110: 86 | B110: Deferral of tax on shipping companies | D110: 0 | E110: 0 | F110: 0 | G110: 0 | H110: 0 | I110: 0 | J110: 0 | K110: 0 | L110: 0 | M110: 0 | N110: 0 | O110: 0
A111: 87 | B111: Exclusion of reimbursed employee parking expenses | D111: 3,130 | E111: 3,239 | F111: 3,353 | G111: 3,470 | H111: 3,626 | I111: 3,789 | J111: 3,960 | K111: 4,138 | L111: 4,324 | M111: 4,519 | N111: 4,722 | O111: 39,140
A112: 88 | B112: Exclusion for employer-provided transit passes | D112: 807 | E112: 835 | F112: 864 | G112: 894 | H112: 944 | I112: 996 | J112: 1,050 | K112: 1,108 | L112: 1,169 | M112: 1,233 | N112: 1,301 | O112: 10,394
A113: 89 | B113: Tax credit for certain expenditures for maintaining railroad tracks | D113: 50 | E113: 30 | F113: 20 | G113: 10 | H113: 10 | I113: 10 | J113: 10 | K113: 0 | L113: 0 | M113: 0 | N113: 0 | O113: 90
A114: 90 | B114: Exclusion of interest on bonds for Highway Projects and rail-truck transfer facilities | D114: 110 | E114: 110 | F114: 100 | G114: 100 | H114: 90 | I114: 90 | J114: 90 | K114: 80 | L114: 80 | M114: 70 | N114: 70 | O114: 880
A116: Community and regional development:
A117: 91 | B117: Exclusion of interest for airport, dock, and similar bonds | D117: 820 | E117: 720 | F117: 780 | G117: 860 | H117: 910 | I117: 920 | J117: 940 | K117: 930 | L117: 940 | M117: 950 | N117: 590 | O117: 8,540
A118: 92 | B118: Exemption of certain mutuals' and cooperatives' income | D118: 0 | E118: 0 | F118: 0 | G118: 0 | H118: 0 | I118: 0 | J118: 0 | K118: 0 | L118: 0 | M118: 0 | N118: 0 | O118: 0
A119: 93 | B119: Empowerment zones | D119: 20 | E119: 20 | F119: 30 | G119: 20 | H119: 20 | I119: 10 | J119: 0 | K119: 0 | L119: 0 | M119: 0 | N119: 0 | O119: 100
A120: 94 | B120: New markets tax credit | D120: 20 | E120: 20 | F120: 30 | G120: 30 | H120: 30 | I120: 30 | J120: 20 | K120: 20 | L120: 10 | M120: 10 | N120: 0 | O120: 200
A121: 95 | B121: Credit to holders of Gulf and Midwest Tax Credit Bonds . | D121: 80 | E121: 70 | F121: 70 | G121: 70 | H121: 70 | I121: 60 | J121: 50 | K121: 50 | L121: 40 | M121: 30 | N121: 20 | O121: 530
A122: 96 | B122: Recovery Zone Bonds 1/ | D122: 70 | E122: 60 | F122: 60 | G122: 60 | H122: 60 | I122: 50 | J122: 50 | K122: 40 | L122: 30 | M122: 30 | N122: 10 | O122: 450
A123: 97 | B123: Tribal Economic Development Bonds | D123: 10 | E123: 10 | F123: 10 | G123: 10 | H123: 10 | I123: 10 | J123: 10 | K123: 10 | L123: 10 | M123: 10 | N123: 10 | O123: 100
A124: 98 | B124: Opportunity Zones | D124: 1,690 | E124: 1,790 | F124: 1,630 | G124: -4,360 | H124: -11,010 | I124: 540 | J124: 710 | K124: 920 | L124: 1,070 | M124: 1,270 | N124: 1,350 | O124: -6,090
A125: 99 | B125: Disaster employee retention credit | D125: 10 | E125: 10 | F125: 10 | G125: 0 | H125: 0 | I125: 0 | J125: 0 | K125: 0 | L125: 0 | M125: 0 | N125: 0 | O125: 20
A127: Education, training, employment, and social services:
B128: Education:
A129: 100 | B129: Exclusion of scholarship and fellowship income (normal tax method) | D129: 4,430 | E129: 4,670 | F129: 4,920 | G129: 5,440 | H129: 6,200 | I129: 6,530 | J129: 6,850 | K129: 7,220 | L129: 7,610 | M129: 8,010 | N129: 8,430 | O129: 65,880
A130: 101 | B130: Tax credits for post-secondary education expenses 1/ | D130: 13,940 | E130: 13,860 | F130: 13,660 | G130: 13,390 | H130: 13,270 | I130: 13,030 | J130: 12,790 | K130: 12,490 | L130: 12,220 | M130: 11,910 | N130: 11,600 | O130: 128,220
A131: 102 | B131: Deductibility of student-loan interest | D131: 560 | E131: 940 | F131: 2,490 | G131: 2,690 | H131: 3,110 | I131: 3,160 | J131: 3,290 | K131: 3,320 | L131: 3,400 | M131: 3,420 | N131: 3,450 | O131: 29,270
A132: 103 | B132: Qualified tuition programs (includes Education IRA) | D132: 3,020 | E132: 3,350 | F132: 3,800 | G132: 4,630 | H132: 5,570 | I132: 6,660 | J132: 8,120 | K132: 10,090 | L132: 12,740 | M132: 16,260 | N132: 20,940 | O132: 92,160
A133: 104 | B133: Exclusion of interest on student-loan bonds | D133: 120 | E133: 110 | F133: 110 | G133: 130 | H133: 130 | I133: 130 | J133: 140 | K133: 140 | L133: 140 | M133: 140 | N133: 90 | O133: 1,260
A134: 105 | B134: Exclusion of interest on bonds for private nonprofit educational facilities | D134: 1,790 | E134: 1,580 | F134: 1,710 | G134: 1,880 | H134: 1,990 | I134: 2,010 | J134: 2,050 | K134: 2,040 | L134: 2,050 | M134: 2,080 | N134: 1,290 | O134: 18,680
A135: 106 | B135: Credit for holders of zone academy bonds 1/ | D135: 0 | E135: 0 | F135: 0 | G135: 0 | H135: 0 | I135: 0 | J135: 0 | K135: 0 | L135: 0 | M135: 0 | N135: 0 | O135: 0
A136: 107 | B136: Exclusion of interest on savings bonds redeemed to finance educational expenses | D136: 40 | E136: 40 | F136: 40 | G136: 50 | H136: 50 | I136: 50 | J136: 50 | K136: 50 | L136: 50 | M136: 60 | N136: 60 | O136: 500
A137: 108 | B137: Parental personal exemption for students age 19 or over | D137: 2,210 | E137: 3,280 | F137: 3,200 | G137: 6,110 | H137: 7,550 | I137: 7,480 | J137: 7,470 | K137: 7,410 | L137: 7,300 | M137: 7,220 | N137: 7,170 | O137: 64,190
A138: 109 | B138: Deductibility of charitable contributions to educational institutions | D138: 5,530 | E138: 5,580 | F138: 5,600 | G138: 6,640 | H138: 9,540 | I138: 10,190 | J138: 10,930 | K138: 11,200 | L138: 11,550 | M138: 11,950 | N138: 12,360 | O138: 95,540
A139: 110 | B139: Exclusion of employer-provided educational assistance | D139: 1,660 | E139: 1,770 | F139: 1,880 | G139: 1,660 | H139: 1,570 | I139: 1,650 | J139: 1,730 | K139: 1,820 | L139: 1,920 | M139: 2,010 | N139: 2,100 | O139: 18,110
A140: 111 | B140: Special deduction for teacher expenses | D140: 160 | E140: 160 | F140: 160 | G140: 170 | H140: 190 | I140: 190 | J140: 210 | K140: 230 | L140: 190 | M140: 200 | N140: 200 | O140: 1,900
A141: 112 | B141: Discharge of student loan indebtedness | D141: 100 | E141: 110 | F141: 130 | G141: 150 | H141: 170 | I141: 200 | J141: 240 | K141: 280 | L141: 320 | M141: 380 | N141: 440 | O141: 2,420
A142: 113 | B142: Qualified school construction bonds 1/ | D142: 370 | E142: 350 | F142: 330 | G142: 310 | H142: 290 | I142: 270 | J142: 250 | K142: 240 | L142: 220 | M142: 200 | N142: 180 | O142: 2,640
B143: Training, employment, and social services:
A144: 114 | B144: Work opportunity tax credit | D144: 520 | E144: 540 | F144: 560 | G144: 440 | H144: 140 | I144: 90 | J144: 70 | K144: 50 | L144: 40 | M144: 30 | N144: 20 | O144: 1,980
A145: 115 | B145: Employer provided child care exclusion | D145: 760 | E145: 840 | F145: 910 | G145: 1,180 | H145: 1,330 | I145: 1,380 | J145: 1,440 | K145: 1,500 | L145: 1,560 | M145: 1,620 | N145: 1,670 | O145: 13,430
A146: 116 | B146: Employer-provided child care credit | D146: 0 | E146: 0 | F146: 0 | G146: 0 | H146: 0 | I146: 0 | J146: 10 | K146: 10 | L146: 10 | M146: 10 | N146: 10 | O146: 50
A147: 117 | B147: Assistance for adopted foster children | D147: 880 | E147: 940 | F147: 1,000 | G147: 1,040 | H147: 1,100 | I147: 1,170 | J147: 1,270 | K147: 1,340 | L147: 1,330 | M147: 1,530 | N147: 1,620 | O147: 12,340
A148: 118 | B148: Adoption credit and exclusion | D148: 870 | E148: 900 | F148: 920 | G148: 930 | H148: 940 | I148: 950 | J148: 960 | K148: 970 | L148: 980 | M148: 990 | N148: 990 | O148: 9,530
A149: 119 | B149: Exclusion of employee meals and lodging (other than military) | D149: 7,650 | E149: 7,420 | F149: 7,600 | G149: 8,870 | H149: 9,650 | I149: 9,980 | J149: 10,340 | K149: 10,710 | L149: 11,090 | M149: 11,480 | N149: 11,890 | O149: 99,030
A150: 120 | B150: Credit for child and dependent care expenses 1/ | D150: 3,480 | E150: 3,690 | F150: 3,850 | G150: 3,920 | H150: 3,950 | I150: 3,980 | J150: 4,010 | K150: 4,040 | L150: 4,070 | M150: 4,100 | N150: 4,120 | O150: 39,730
A151: 121 | B151: Credit for disabled access expenditures | D151: 10 | E151: 10 | F151: 10 | G151: 10 | H151: 10 | I151: 10 | J151: 10 | K151: 10 | L151: 10 | M151: 10 | N151: 10 | O151: 100
A152: 122 | B152: Deductibility of charitable contributions, other than education and health | D152: 46,250 | E152: 46,790 | F152: 46,890 | G152: 55,570 | H152: 79,790 | I152: 85,290 | J152: 91,360 | K152: 96,670 | L152: 102,980 | M152: 109,790 | N152: 117,050 | O152: 832,180
A153: 123 | B153: Exclusion of certain foster care payments | D153: 500 | E153: 530 | F153: 560 | G153: 590 | H153: 640 | I153: 700 | J153: 780 | K153: 870 | L153: 970 | M153: 1,100 | N153: 1,270 | O153: 8,010
A154: 124 | B154: Exclusion of parsonage allowances | D154: 959 | E154: 1,009 | F154: 1,058 | G154: 1,118 | H154: 1,177 | I154: 1,246 | J154: 1,305 | K154: 1,375 | L154: 1,444 | M154: 1,523 | N154: 1,602 | O154: 12,857
A155: 125 | B155: Indian employment credit | D155: 20 | E155: 20 | F155: 10 | G155: 10 | H155: 10 | I155: 10 | J155: 0 | K155: 0 | L155: 0 | M155: 0 | N155: 0 | O155: 60
A156: 126 | B156: Employer-provided paid family and medical leave credit | D156: 10 | E156: 20 | F156: 20 | G156: 10 | H156: 0 | I156: 0 | J156: 0 | K156: 0 | L156: 0 | M156: 0 | N156: 0 | O156: 50
A158: Health:
A159: 127 | B159: Exclusion of employer contributions for medical insurance premiums and medical care 6/ | D159: 215,860 | E159: 231,010 | F159: 246,510 | G159: 289,890 | H159: 321,980 | I159: 340,080 | J159: 359,210 | K159: 379,310 | L159: 400,400 | M159: 422,430 | N159: 445,530 | O159: 3,436,350
A160: 128 | B160: Self-employed medical insurance premiums | D160: 8,150 | E160: 8,520 | F160: 9,030 | G160: 11,210 | H160: 12,990 | I160: 14,060 | J160: 15,040 | K160: 16,290 | L160: 17,610 | M160: 18,790 | N160: 19,770 | O160: 143,310
A161: 129 | B161: Medical Savings Accounts / Health Savings Accounts | D161: 12,830 | E161: 13,610 | F161: 14,180 | G161: 16,270 | H161: 17,690 | I161: 18,260 | J161: 18,820 | K161: 19,500 | L161: 20,190 | M161: 20,820 | N161: 21,540 | O161: 180,880
A162: 130 | B162: Deductibility of medical expenses | D162: 12,260 | E162: 12,900 | F162: 13,550 | G162: 18,620 | H162: 22,370 | I162: 24,140 | J162: 25,910 | K162: 27,850 | L162: 30,040 | M162: 32,460 | N162: 35,100 | O162: 242,940
A163: 131 | B163: Exclusion of interest on hospital construction bonds | D163: 2,450 | E163: 2,160 | F163: 2,340 | G163: 2,570 | H163: 2,720 | I163: 2,750 | J163: 2,800 | K163: 2,790 | L163: 2,810 | M163: 2,840 | N163: 1,770 | O163: 25,550
A164: 132 | B164: Refundable Premium Assistance Tax Credit 1/ | D164: 15,047 | E164: 14,935 | F164: 15,413 | G164: 12,440 | H164: 10,816 | I164: 10,684 | J164: 10,507 | K164: 10,913 | L164: 11,914 | M164: 12,707 | N164: 13,277 | O164: 123,606
A165: 133 | B165: Credit for employee health insurance expenses of small business | D165: 10 | E165: 10 | F165: 0 | G165: 0 | H165: 0 | I165: 0 | J165: 0 | K165: 0 | L165: 0 | M165: 0 | N165: 0 | O165: 10
A166: 134 | B166: Deductibility of charitable contributions to health institutions | D166: 5,160 | E166: 5,210 | F166: 5,220 | G166: 6,190 | H166: 8,880 | I166: 9,500 | J166: 10,170 | K166: 10,770 | L166: 11,460 | M166: 12,220 | N166: 13,030 | O166: 92,650
A167: 135 | B167: Tax credit for orphan drug research | D167: 10 | E167: 10 | F167: 10 | G167: 10 | H167: 10 | I167: 10 | J167: 10 | K167: 10 | L167: 10 | M167: 10 | N167: 10 | O167: 100
A168: 136 | B168: Special Blue Cross/Blue Shield tax benefits | D168: 0 | E168: 0 | F168: 0 | G168: 0 | H168: 0 | I168: 0 | J168: 0 | K168: 0 | L168: 0 | M168: 0 | N168: 0 | O168: 0
A169: 137 | B169: Distributions from retirement plans for premiums for health and long-term care insurance | D169: 0 | E169: 0 | F169: 0 | G169: 0 | H169: 0 | I169: 0 | J169: 0 | K169: 0 | L169: 0 | M169: 0 | N169: 0 | O169: 0
A170: 138 | B170: Credit for family and sick leave taken by self-employed individuals 1/ | D170: 520 | E170: 0 | F170: 0 | G170: 0 | H170: 0 | I170: 0 | J170: 0 | K170: 0 | L170: 0 | M170: 0 | N170: 0 | O170: 0
A172: Income security:
A173: 139 | B173: Child credit 1/ | D173: 67,520 | E173: 63,740 | F173: 65,370 | G173: 45,890 | H173: 15,780 | I173: 15,390 | J173: 14,990 | K173: 14,540 | L173: 14,050 | M173: 13,560 | N173: 13,110 | O173: 276,420
A174: 140 | B174: Other Dependent Tax Credit | D174: 3,540 | E174: 9,080 | F174: 9,220 | G174: 5,540 | H174: 0 | I174: 0 | J174: 0 | K174: 0 | L174: 0 | M174: 0 | N174: 0 | O174: 23,840
A175: 141 | B175: Exclusion of railroad retirement (Social Security equivalent) benefits | D175: 300 | E175: 280 | F175: 260 | G175: 270 | H175: 270 | I175: 250 | J175: 220 | K175: 200 | L175: 160 | M175: 130 | N175: 90 | O175: 2,130
A176: 142 | B176: Exclusion of workers' compensation benefits | D176: 8,870 | E176: 8,870 | F176: 8,870 | G176: 8,860 | H176: 8,860 | I176: 8,850 | J176: 8,850 | K176: 8,850 | L176: 8,840 | M176: 8,840 | N176: 8,840 | O176: 88,530
A177: 143 | B177: Exclusion of public assistance benefits (normal tax method) | D177: 760 | E177: 720 | F177: 720 | G177: 770 | H177: 800 | I177: 830 | J177: 850 | K177: 840 | L177: 890 | M177: 920 | N177: 970 | O177: 8,310
A178: 144 | B178: Exclusion of special benefits for disabled coal miners | D178: 20 | E178: 20 | F178: 20 | G178: 20 | H178: 10 | I178: 10 | J178: 10 | K178: 10 | L178: 10 | M178: 10 | N178: 10 | O178: 130
A179: 145 | B179: Exclusion of military disability pensions | D179: 200 | E179: 210 | F179: 210 | G179: 240 | H179: 260 | I179: 260 | J179: 270 | K179: 280 | L179: 280 | M179: 290 | N179: 300 | O179: 2,600
B180: Net exclusion of pension contributions and earnings:
A181: 146 | B181: Defined benefit employer plans | D181: 70,100 | E181: 68,860 | F181: 68,880 | G181: 77,890 | H181: 77,310 | I181: 76,940 | J181: 76,680 | K181: 77,780 | L181: 77,950 | M181: 77,510 | N181: 76,910 | O181: 756,710
A182: 147 | B182: Defined contribution employer plans | D182: 133,860 | E182: 136,290 | F182: 141,780 | G182: 170,240 | H182: 177,930 | I182: 186,430 | J182: 195,500 | K182: 205,940 | L182: 218,260 | M182: 229,800 | N182: 242,050 | O182: 1,904,220
A183: 148 | B183: Individual Retirement Accounts | D183: 32,690 | E183: 33,210 | F183: 34,470 | G183: 41,470 | H183: 43,930 | I183: 46,180 | J183: 48,460 | K183: 51,170 | L183: 54,430 | M183: 58,190 | N183: 62,140 | O183: 473,650
A184: 149 | B184: Low and moderate income savers credit | D184: 1,860 | E184: 1,990 | F184: 1,970 | G184: 2,140 | H184: 2,100 | I184: 4,170 | J184: 4,160 | K184: 4,090 | L184: 4,120 | M184: 4,060 | N184: 4,020 | O184: 32,820
A185: 150 | B185: Self-Employed plans | D185: 43,180 | E185: 43,960 | F185: 45,730 | G185: 54,910 | H185: 57,390 | I185: 60,130 | J185: 63,060 | K185: 66,430 | L185: 70,400 | M185: 74,120 | N185: 78,080 | O185: 614,210
A186: 151 | B186: Small employer pension plan startup credit | D186: 0 | E186: 0 | F186: 290 | G186: 340 | H186: 320 | I186: 280 | J186: 250 | K186: 210 | L186: 160 | M186: 120 | N186: 120 | O186: =+SUM(E186:N186) -> 2,090
B187: Exclusion of other employee benefits:
A188: =+A186+1 -> 152 | B188: Premiums on group term life insurance | D188: 3,440 | E188: 3,500 | F188: 3,610 | G188: 4,100 | H188: 4,360 | I188: 4,500 | J188: 4,650 | K188: 4,810 | L188: 4,970 | M188: 5,130 | N188: 5,300 | O188: 44,930
A189: =+A188+1 -> 153 | B189: Premiums on accident and disability insurance | D189: 1,720 | E189: 1,730 | F189: 1,760 | G189: 1,970 | H189: 2,060 | I189: 2,100 | J189: 2,140 | K189: 2,190 | L189: 2,230 | M189: 2,280 | N189: 2,320 | O189: 20,780
A190: =+A189+1 -> 154 | B190: Income of trusts to finance supplementary unemployment benefits | D190: 40 | E190: 50 | F190: 50 | G190: 50 | H190: 50 | I190: 50 | J190: 50 | K190: 60 | L190: 60 | M190: 60 | N190: 60 | O190: 540
A191: =+A190+1 -> 155 | B191: Income of trusts to finance voluntary employee benefits associations | D191: 0 | E191: 0 | F191: 0 | G191: 0 | H191: 0 | I191: 0 | J191: 0 | K191: 0 | L191: 0 | M191: 0 | N191: 0 | O191: 0
A192: 156 | B192: Special Employee Stock Ownership Plan (ESOP) rules | D192: 30 | E192: 30 | F192: 30 | G192: 30 | H192: 30 | I192: 30 | J192: 40 | K192: 40 | L192: 40 | M192: 40 | N192: 40 | O192: 350
A193: 157 | B193: Additional deduction for the blind | D193: 50 | E193: 50 | F193: 60 | G193: 50 | H193: 50 | I193: 50 | J193: 60 | K193: 60 | L193: 60 | M193: 60 | N193: 70 | O193: 570
A194: 158 | B194: Additional deduction for the elderly | D194: 7,540 | E194: 8,070 | F194: 8,650 | G194: 7,460 | H194: 7,810 | I194: 8,280 | J194: 8,780 | K194: 9,290 | L194: 9,500 | M194: 9,980 | N194: 10,480 | O194: 88,300
A195: 159 | B195: Deductibility of casualty losses | D195: 0 | E195: 0 | F195: 0 | G195: 680 | H195: 1,040 | I195: 1,090 | J195: 1,140 | K195: 1,190 | L195: 1,260 | M195: 1,310 | N195: 1,360 | O195: 9,070
A196: 160 | B196: Earned income tax credit 1/ | D196: 2,700 | E196: 3,030 | F196: 3,180 | G196: 3,290 | H196: 5,020 | I196: 5,220 | J196: 5,410 | K196: 5,550 | L196: 5,760 | M196: 5,990 | N196: 6,170 | O196: 48,620
A197: 161 | B197: Recovery rebate credits 1/ | D197: 3,460 | E197: 990 | F197: 220 | G197: 0 | H197: 0 | I197: 0 | J197: 0 | K197: 0 | L197: 0 | M197: 0 | N197: 0 | O197: 1,210
A199: Social Security:
B200: Exclusion of social security benefits:
A201: =+A197+1 -> 162 | B201: Social Security benefits for retired and disabled workers and spouses, dependents and survivors | D201: 30,700 | E201: 30,810 | F201: 30,440 | G201: 34,430 | H201: 39,930 | I201: 41,350 | J201: 42,850 | K201: 44,380 | L201: 46,220 | M201: 48,170 | N201: 50,150 | O201: 408,730
A202: =+A201+1 -> 163 | B202: Credit for certain employer contributions to social security | D202: 1,280 | E202: 1,360 | F202: 1,440 | G202: 1,520 | H202: 1,600 | I202: 1,680 | J202: 1,760 | K202: 1,840 | L202: 1,920 | M202: 2,000 | N202: 2,080 | O202: 17,200
A204: Veterans benefits and services:
A205: =+A202+1 -> 164 | B205: Exclusion of veterans death benefits and disability compensation | D205: 11,640 | E205: 13,120 | F205: 14,040 | G205: 15,200 | H205: 17,380 | I205: 18,120 | J205: 18,840 | K205: 19,600 | L205: 20,430 | M205: 21,290 | N205: 22,160 | O205: 180,180
A206: =+A205+1 -> 165 | B206: Exclusion of veterans pensions | D206: 220 | E206: 210 | F206: 200 | G206: 210 | H206: 220 | I206: 220 | J206: 210 | K206: 210 | L206: 210 | M206: 200 | N206: 200 | O206: 2,090
A207: 166 | B207: Exclusion of GI bill benefits | D207: 1,460 | E207: 1,510 | F207: 1,560 | G207: 1,650 | H207: 1,850 | I207: 1,890 | J207: 1,930 | K207: 1,970 | L207: 2,010 | M207: 2,050 | N207: 2,090 | O207: 18,510
A208: 167 | B208: Exclusion of interest on veterans housing bonds | D208: 60 | E208: 50 | F208: 60 | G208: 70 | H208: 70 | I208: 70 | J208: 70 | K208: 70 | L208: 70 | M208: 70 | N208: 40 | O208: 640
A210: General purpose fiscal assistance:
A211: =+A208+1 -> 168 | B211: Exclusion of interest on public purpose State and local bonds | D211: 23,380 | E211: 20,600 | F211: 22,360 | G211: 24,530 | H211: 26,020 | I211: 26,290 | J211: 26,760 | K211: 26,610 | L211: 26,850 | M211: 27,110 | N211: 16,910 | O211: 244,040
A212: =+A211+1 -> 169 | B212: Build America Bonds 1/ | D212: 0 | E212: 0 | F212: 0 | G212: 0 | H212: 0 | I212: 0 | J212: 0 | K212: 0 | L212: 0 | M212: 0 | N212: 0 | O212: 0
A213: =+A212+1 -> 170 | B213: Deductibility of nonbusiness State and local taxes other than on owner-occupied homes 5/ | D213: 7,030 | E213: 6,580 | F213: 6,090 | G213: 65,920 | H213: 91,280 | I213: 92,130 | J213: 96,490 | K213: 101,330 | L213: 106,750 | M213: 112,220 | N213: 117,920 | O213: 796,710
A215: Interest:
A216: =+A213+1 -> 171 | B216: Deferral of interest on U.S. savings bonds | D216: 820 | E216: 810 | F216: 800 | G216: 800 | H216: 790 | I216: 780 | J216: 770 | K216: 760 | L216: 750 | M216: 750 | N216: 740 | O216: 7,750
O217: 0
... 17 more rows
